{"text_format":"3","workbook":"xlsx","n_sheets":4,"sheets":["“3+4”中职本科","五年大专","三年中专全日制","三年中专非全日制"],"not_rendered":{"defined_names":6},"read":"whole","date_system":"1900"}

{"sheet":"“3+4”中职本科","index":0,"n_rows":31,"n_cols":9,"rows_kept":31,"merged":[[0,0,0,8],[1,0,1,8],[2,0,3,0],[2,1,3,1],[2,2,3,2],[2,3,3,3],[2,4,2,5],[2,6,3,6],[2,7,3,7],[2,8,3,8]]}
["2026年面向三明市招生的中职本科“3+4”贯通、五年制大专高等职业院校\n和中等职业学校（含技工学校）招生计划"]
["（一）中职本科“3+4”贯通培养试点项目招生计划"]
["序号","本科高职院校","\n本科专业名称","学校\n专业代码","中职本科“3+4”贯通培养",null,"计划数（人,应届初中毕业生）","学制（年）","备 注"]
[{"$nulls":4},"中职学校","专业名称"]
["全市总计","7所","17个专业名称",null,"18所","14个",{"$f":"G6+G11+G16+G19+G24+G27+G29","v":36},"7","说明：中职本科“3+4”贯通班学生须转段考核合格，才能转入对口本科院校。转段考核包括过程性考核和转段考试。过程性考核方案由本科学校和中职学校共同制定，并于中职第一学期向学生公布。过程性考核合格方可参加转段考试。转段考试为学生在中职二年级下学期参加全省统一组织的中等职业学校学业水平考试的公共基础知识（思想政治、语文、数学、英语）和专业基础知识考试。省教育厅划定转段最低录取控制分数线，上线学生方可转段至对口贯通的本科高校继续学习。未通过转段考试的学生，符合考试报名条件的可参加高职分类考试或普通高考，符合毕业要求，颁发中职毕业证书。"]
["一","福建技术师范学院（公办）",null,"B00100",null,null,{"$f":"SUM(G7:G10)","v":9},null,"福建技术师范学院，简称“福师院”，是福建省公办本科高校，学生后四年到福建技术师范学院学习，学费按照转段当年福建技术师范学院入学的相关专业本科生学费标准缴费。\n 学校地址：福建省福清市龙江街道校园新村1号\n学校网址：https://www.fpnu.edu.cn"]
[1,"福建技术师范学院（公办）","机械电子工程","B00101","福建工业学校（公办）","机械制造技术",2,"3+4","福建工业学校地址：福州市仓山区洪山桥上店13号；官网：https://www.fjgx.cn；招生电话：0591-83768408、63187508；学生前三年在福建工业学校学习，免学费；联系人：林智斌，联系电话：13055421098"]
[2,"福建技术师范学院（公办）","机械电子工程","B00102","福建理工学校（公办）","机械制造技术",3,"3+4","福建理工学校地址：福州市仓山区洪山桥上店61号,学校网址：http//www.fjlg.com,招生热线：0591-83740149， 0591-83766792，邱老师18396512182，刘老师13763832846，刘老师18750991023，郭老师17859501120；学生前三年在福建理工学校学习，免学费；联系人：刘秋英，联系电话：18750991023"]
[3,"福建技术师范学院（公办）","计算机科学与技术","B00103","福建省邮电学校（公办）","计算机网络技术",2,"3+4","全国文明校园，福建省教育厅直属公办首批全国重点中专，国家级示范校\n地址：福州市仓山区上渡路李厝山60号\n联系电话：0591-83573573；柯老师：18120889973，肖老师：18120889972，林老师：18120889971（微信同号）。\n学校网站：www.fjydxx.com；微信号：福建省邮电学校。联系人：柯兴忠，联系电话：0591-83573573\n学生前三年在福建省邮电学校（中职）学习，免学费；通过转段考核，后四年到福建技术师范学院（本科）学习。\n"]
[4,"福建技术师范学院（公办）","计算机科学与技术","B00104","福建商贸学校（公办）","计算机网络技术",2,"3+4","公办国家重点中专学校 国家示范校                                                                   福建商贸学校学校地址：福州市仓山区首山路33号       邮编：350007                                                             联系人：林老师、黄老师    联系电话：0591-88036065，83417987，18960732786,18960819820                                 学校网址：www.cnfjsm.com\n学校前三年在福建商贸学校学习，免学费;  \n联系人：黄莹 18905905823"]
["二","福建商学院（公办）",null,"B00200",null,null,{"$f":"SUM(G12:G15)","v":8},null,"福建商学院（Fujian Business University），简称“福商”，坐落于福建省福州市。学校是福建省人民政府举办的省属公办全日制普通本科高校，学生后四年到福建商学院学习，学费按照转段当年入学的相关专业本科生学费标准缴费                                              学校官网：http://www.fjbu.edu.cn/，学校本部地址：福建省福州市连江县西江滨大道2号（连江校区）。       联系人：郑老师    电话：0591－26290052、88020051  "]
[1,"福建商学院（公办）","数据科学与大数据技术","B00201","福州商贸职业中专学校（公办）","数字媒体技术应用",2,"3+4","福州商贸职业中专学校地址：福州市仓山区城门镇浚边路76号       \n邮编：350018                                                            \n联系电话：0591-83501279；方老师：18060810895，陈老师：18950232581 许老师：18065153871，姚老师：18065153872，                  \n学校网址：https://fzsm.fzjy.pub；\n前三年在中职阶段免学费。"]
[2,"福建商学院（公办）","物业管理","B00202","福州建筑工程职业中专学校（公办）","智能设备运行与维护",2,"3+4","地址：福州市仓山科技园双湖三路9号\n邮编：350007\n联系人：王老师 林老师 陈老师\n联系电话：0591-83587323、83455929、15392498347、15396124972 \n学校网站：https://fzjzschool.cn\n学生前三年在福州建筑工程职业中专学校学习，免学费。\n联系人：王华丰 联系电话：15392498347"]
[3,"福建商学院（公办）","物流管理","B00203","连江职业中专学校（公办）","物流服务与管理",2,"3+4","连江职业中专学校是一所‌公办省级重点中等职业学校‌，创办于1984年，2004年又以优异成绩通过省部级重点中等职业学校（可向全国招生）的评估。地址：福州市连江县江南镇‌（新校区在文山路 21 号）             联系电话：‌0591-26232426‌，学校网站：https://fzjzschool.cn\n学生前三年在连江职业中专学校学习，免学费。\n联系人：兰书婷   联系电话：13905921396"]
[4,"福建商学院（公办）","网络与新媒体","B00204","福州财政金融职业中专学校（公办）","数字影像技术",2,"3+4","福建省福州财政金融职业中专学校\n地址：福州市仓山区闽江大道318号      \n邮编：350008                                                            \n联系人：翁老师  杨老师   肖老师  \n电话：0591-83259413   0591-83700357   18950218979                 \n网址：https://cjzz.fzjy.pub/\n学生前三年在福州财政金融职业中专学校（中职）学习，免学费。"]
["三","厦门华厦学院（民办）",null,"B00300",null,null,{"$f":"SUM(G17:G18)","v":3},null,"厦门华厦学院是教育部批准设立的应用型本科高校，学校地址：厦门市集美文教区天马路288号。学校网址：https://www.hxxy.edu.cn/。后四年在厦门华厦学院学习，根据现行厦门华厦学院学费标准物联网工程专业为31000元/学年、通信工程专业学费为33000元/学年（如有调整，按照转段当年厦门华厦学院入学的相关专业本科生学费标准缴费）。联系人：吴三萍  电话：18959242258"]
[1,"厦门华厦学院（民办）","物联网工程","B00301","厦门工商旅游学校（公办）","物联网技术应用",2,"3+4","厦门工商旅游学校地址：厦门市集美区天马路316号，网址https://www.xmgslx.com/招生电话：0592-6273227\n前三年在厦门工商旅游学校就读，免收学费。联系人：王鹏 联系电话：18750926709\n"]
[2,"厦门华厦学院（民办）","通信工程","B00302","厦门信息学校（公办）","计算机网络技术",1,"3+4","厦门信息学校是一所厦门市教育局直属的公办中专学校，国家级重点中等职业学校、国家中等职业教育改革发展示范学校、福建省示范性现代职业院校。地址：厦门市湖里区禾山路201号，邮编：361009  招生联系电话：0592-5566161、5539155   \n学校网址：http://www.xiamenis.cn；\n前三年在厦门信息学校学习，免学费。                                                               联系人：张艺娜  联系电话：15980756940\n"]
["四","泉州职业技术大学（民办）",null,"B00400",null,null,{"$f":"SUM(G20:G23)","v":6},null,"泉州职业技术大学学校地址：福建省晋江市内坑镇锦丰路112号，联系方式：0595-22500777， 网址：https://www.qvtu.edu.cn/，后四年到泉州职业技术大学学习，根据转段当年泉州职业技术大学入学的相关专业本科生学费标准缴费。  联系人：黄世强  电话：15159599108"]
[1,"泉州职业技术大学（民办）","物联网工程技术","B00401","晋江职业中专学校（公办）","物联网技术应用",2,"3+4","晋江职业中专学校地址：福建省晋江市金井镇新市村南区1号；0595-85381027；前三年在晋江职业中专学校，免学费，住宿费：500元/年、代办费：约800元/第一学年；网址：www.fjjjzx.com；联系人：柯老师 联系电话：13506051505\n"]
[2,"泉州职业技术大学（民办）","新能源汽车工程技术","B00402","晋江华侨职业中专学校（公办）","新能源汽车运用与维修",1,"3+4","晋江华侨职业中专学校地址:晋江市西园街道双龙路463号 电话:0595-85680296\n网址: www.jjhqzx.cn\n前三年在晋江华侨职业中专学校学习，免学费、前三年住宿费500元/学年、前三年代办费约800元/学年（按实收取）；联系人：高峰 联系电话：18065339151"]
[3,"泉州职业技术大学（民办）","电子商务","B00403","晋江市晋兴职业中专学校（公办）","电子商务",2,"3+4","晋江市晋兴职业中专学校地址：晋江市磁灶镇大宅村顺发路32号（陶英校区），招生电话：0595-85856890，网址：www.jjjxzx.cn,学校公众号：jjsjxzx\n前三年在晋江市晋兴职业中专学校学习，免学费，住宿费500/年，前三年代办费约800元/学年（按实收取），联系人：蔡老师，联系电话：18050990858"]
[4,"泉州职业技术大学（民办）","机械设计制造及自动化","B00404","晋江安海职业中专学校（公办）","机电技术应用",1,"3+4","晋江安海职业中专学校学校地址：晋江市安海镇兴安北路1号，联系方式：0595-85791215                      网址：http://www.jjahzx.cn/\n前三年在晋江安海职业中专学校学习；住宿费500/年，代办费800元/第一学年；后两年按实际支出收取。联系人：颜培德 联系电话：18065337525"]
["五","黎明职业大学（公办）",null,"B00500",null,null,{"$f":"SUM(G25:G26)","v":4},null,"黎明职业大学坐落于“晋江经验”发源地、世界遗产城市泉州，是泉州市人民政府举办的全日制综合性公办本科大学。学校官网：https://www.lmu.edu.cn，学校地址：泉州市丰泽区通港西街298号。后四年到大学学习，根据转段当年黎明职业大学入学的相关专业本科生学费标准缴费。                                                     联系人：吕老师   电话：0595-22001232"]
[1,"黎明职业大学（公办）","数字媒体技术","B00501","泉州华侨职业中专学校（公办）","数字媒体技术应用",2,"3+4","泉州华侨职业中专学校（简称泉州华侨职校）是泉州市教育局直属泉州市第一所“国家级重点”中等职业学校。地址：（都督第校区）泉州市鲤城区北门街都督第巷2号、（二郎巷校区）泉州市鲤城区二郎巷66号，邮编：350018  联系电话：0595-22762572、0595-22763835    \n学校网址：https://www.qzhqzx.com/；\n前三年在泉州华侨职业中专学校学习，免学费。                                                   联系人：吴莹莹 联系电话：15980323051"]
[2,"黎明职业大学（公办）","建筑电气与智能化工程","B00502","福建建筑学校（公办）","建筑水电设备安装与运维",2,"3+4","福建建筑学校（原福建建材工业学校）创建于 1979 年，是直属福建省教育厅的‌公办国家级重点中等职业学校‌，国家级示范校。地址：福州市仓山区建新镇洪山桥中店43号，邮编：350002\n联系电话：0591-83746460 或 28912388 \n学校网站：https://www.fjjzxx.cn\n学生前三年在福建建筑学校学习，免学费。\n联系人：夏冬琴  联系电话：13774540007"]
["六","闽南师范大学（公办）",null,"B00600",null,null,{"$f":"SUM(G28)","v":2},null,"闽南师范大学（Minnan Normal University）位于福建省漳州市，是福建省重点建设高校、福建省“双一流”建设高校、博士学位授予单位。 2025年，获批硕士研究生推免资格。学校官网：http://www.mnnu.edu.cn，学校地址：（江滨校区）福建省漳州市芗城区县前直街36号。前三年中职阶段免学费，通过转段考核，后四年到闽南师范大学学习，根据按照转段当年闽南师范大学入学的相关专业本科生学费标准缴费。                                                                              联系人：吴老师    电话：0596-2520867 "]
[1,"闽南师范大学（公办）","食品科学与工程","B00601","漳州第一职业中专学校（公办）","食品加工工艺",2,"3+4","漳州第一职业中专学校创办于1972年，是福建省示范性现代中等职业学校及“双高计划”建设单位。地址：（校本部）漳州市芗城区芝山路53号，‌（腾飞校区）芗城区腾飞路655号。                            联系电话：校本部0596-2047123‌，腾飞校区电话0596-2659140‌    \n学校网址：https://zzyzx.com.cn/；\n前三年在漳州第一职业中专学校学习，免学费。                                                   联系人：陈瑞生 联系电话：18965262713"]
["七","龙岩学院（公办）",null,"B00700",null,null,{"$f":"SUM(G30:G31)","v":4},null,"龙岩学院（Longyan University）位于福建省龙岩市，是经教育部批准设立的全日制普通本科院校，是“十四五”时期“教育强国推进工程”建设高校、硕士学位授予单位、福建省一流应用型建设高校（B类）、福建省示范性应用型本科高校 、福建省高等院校和科研院所科技成果转化综合试点单位 、教育部“对口支援西部地区高等学校计划”。学校官网：https://www.lyun.edu.cn/，学校地址：福建省龙岩市新罗区东肖北路1号 。后四年到大学学习，根据本科一般专业5040元/生·学年、重点学科专业5460元/生·学年(实际收费按上级政府部门批复标准执行)（如有调整，按照转段当年入学的相关专业本科生学费标准缴费）                                                                         联系人：吴老师   联系电话：0597-2793756"]
[1,"龙岩学院（公办）","电子信息工程","B00701","厦门信息学校（公办）","电子技术应用",2,"3+4","厦门信息学校是一所厦门市教育局直属的公办中专学校，国家级重点中等职业学校、国家中等职业教育改革发展示范学校、福建省示范性现代职业院校。地址：厦门市湖里区禾山路201号，邮编：361009  招生联系电话：0592-5566161、5539155   \n学校网址：http://www.xiamenis.cn；\n前三年在厦门信息学校学习，免学费。                                                               联系人：张艺娜  联系电话：15980756940"]
[2,"龙岩学院（公办）","机械设计制造及其自动化","B00702","龙岩华侨职业中专学校（公办）","数控技术应用",2,"3+4","福建省龙岩华侨职业中专学校是1954年由爱国华侨捐资创办的公办中等职业学校，位于福建省龙岩市新罗区，现有‌虎岭和小洋两个校区‌，是首批国家级重点中专、首批国家中等职业教育改革与发展示范学校、福建省示范性现代中等职业学校、福建省高水平职业院校和高水平专业A类院校等。\n地址：（虎岭校区‌）福建省龙岩市新罗区龙川北路9号、（‌小洋校区‌）福建省龙岩市新罗区龙岩大道北216号 \n邮编：364000\n联系电话：0597-2290370   学校网站：http://www.lyqzh.net/\n学生前三年在福建省龙岩华侨职业中专学校小洋校区学习，免学费。\n联系人：林老师  联系电话：0597-2228333、18039882566"]

{"sheet":"五年大专","index":1,"n_rows":173,"n_cols":9,"rows_kept":173,"merged":[[0,1,0,8],[1,1,1,8],[2,1,3,1],[2,2,3,2],[2,3,3,3],[2,4,3,4],[2,5,3,5],[2,6,3,6],[2,7,3,7],[2,8,3,8]]}
[null,"2026年面向三明市招生的中职本科“3+4”贯通、五年制大专高等职业院校\n和中等职业学校（含技工学校）招生计划"]
["2020年五年制高等职业招生计划拟安排方案","（二）五年制高职招生计划"]
["学校名称","序号","高职院校","\n专业名称","学校\n专业代码","“三二分段制”\n中职学校","招生计划数（人,应届初中毕业生）","学制（年）","备 注"]
[]
[{"$nulls":6},{"$f":"G6+G32+G47+G54+G64+G76+G95+G99+G112+G114+G116+G119+G122+G124+G126+G128+G130+G136+G140+G143+G156+G161+G165+G170","v":1780}]
[null,"一","三明医学科技职业学院",null,"D00100",null,{"$f":"SUM(G7:G31)","v":671},null,"位处福建省三明市梅列区高岩路6号，由三明市人民政府举办的一所全日制综合性高职院校，是福建省示范性现代职业院校。网址：https://www.smykzy.cn/ ，联系人：刘老师，联系电话：0598-8282672 "]
[null,1,"三明医学科技职业学院","护理","D00101","自办",32,5,"地址：福建省三明市宁化县东大路10号 邮编：365400联系人：付铃英 联系电话：0598-6826867 0598-6820316 付老师13348441308 张老师18064530092 邮箱：lhwxjwc@163.com  公立校  收费：前三年按合作中职校当年缴费标准执行（免学费），后二年按合作高职校当年专科缴费标准执行。"]
[null,2,"三明医学科技职业学院","康复治疗技术","D00102","自办",32,"5","地址：福建省三明市宁化县东大路10号 邮编：365400联系人：付铃英 联系电话：0598-6826867 0598-6820316 付老师13348441308 张老师18064530092 邮箱：lhwxjwc@163.com  公立校  收费：前三年按合作中职校当年缴费标准执行（免学费），后二年按合作高职校当年专科缴费标准执行。"]
[null,3,"三明医学科技职业学院","药学","D00103","自办",32,"5","地址：福建省三明市宁化县东大路10号 邮编：365400联系人：付铃英 联系电话：0598-6826867 0598-6820316 付老师13348441308 张老师18064530092 邮箱：lhwxjwc@163.com  公立校  收费：前三年按合作中职校当年缴费标准执行（免学费），后二年按合作高职校当年专科缴费标准执行。"]
[null,4,"三明医学科技职业学院","电子商务","D00104","三明市金湖旅游职业中专学校",37,5,"地址：三明市泰宁县许洋路福山排7号；邮编：354400；联系人：18960599816（冯老师），18950928988（徐老师）；办公室电话：0598-7832455。收费标准：前三年按合作中职校当年缴费标准执行（免学费），后二年按合作高职校当年专科缴费标准执行。"]
[null,5,"三明医学科技职业学院","服装与服饰设计","D00105","安溪华侨职业中专学校",5,"5","地址:泉州市安溪县建安南路188号(宝龙城市广场斜对面)\n联系电话:0595-23232548，\n吴老师18065532571\n李老师18150806606\n收费标准：前三年按合作中职校当年缴费标准执行（免学费），后二年按合作高职校当年专科缴费标准执行。\n微信公众号:安溪华侨职校\n网址:www.axhqzx.com"]
[null,6,"三明医学科技职业学院","会计信息管理","D00106","福建三明林业学校",38,5,"学校地址：三明市三元区富文一路25号，http://www.fjsmlyxx.com\n联系电话：0598-8337981  8328063，18950957686(林老师),18950957509(卫老师)\n收费标准：前三年中职阶段免学费，后二年按合作高职校当年专科学费标准执行。"]
[null,7,"三明医学科技职业学院","会计信息管理","D00107","厦门工商旅游学校",8,5,"学校地址:厦门市集美区天马路316号，联系电话：0592-6273227。收费标准：前三年按合作中职校当年缴费标准执行（免学费），后二年按合作高职校当年专科缴费标准执行。"]
[null,8,"三明医学科技职业学院","机电一体化技术","D00108","福建省永安职业中专学校",38,5,"地址：永安市燕西街道上吉山268号\n联系电话：0598-3654222\n联系人：黄老师13859187600      李老师18960581365\n收费标准：前三年按合作中职校当年缴费标准执行（免学费），后二年按合作高职校当年专科缴费标准执行。"]
[null,9,"三明医学科技职业学院","机电一体化技术","D00109","厦门市集美职业技术学校",10,"5","全国教育系统先进集体，国家级重点中等职业学校，国家中等职业教育改革发展示范学校\n地址：福建省厦门市集美区灌口南路199号（新校区） ，联系人:李老师，招生热线：0592--6248504  网址：https://jmzx.xmjmedu.com/ 公立校                                                           收费标准：前三年按合作中职校当年缴费标准执行（免学费），后二年按合作高职校当年专科缴费标准执行。"]
[null,10,"三明医学科技职业学院","机电一体化技术","D00110","福建省闽清职业中专学校",16,5,"联系电话：0591-62300780。收费标准：前三年按合作中职校当年缴费标准执行（免学费），后二年按合作高职校当年专科缴费标准执行。"]
[null,11,"三明医学科技职业学院","机械制造及自动化","D00111","福建省尤溪职业中专学校",43,5,"学校地址：福建省尤溪县城关镇北门路30号\n联系电话：0598-6335345。\n收费标准：前三年按合作中职校当年缴费标准执行（免学费），后二年按合作高职校当年专科缴费标准执行。学校地址：福建省尤溪县城关镇北门路30号\n联系电话：0598-6335345。\n"]
[null,12,"三明医学科技职业学院","机械制造及自动化","D00112","福建省南安职业中专学校",10,5,"联系电话：0595-86386618。收费标准：前三年按合作中职校当年缴费标准执行（免学费），后二年按合作高职校当年专科缴费标准执行。"]
[null,13,"三明医学科技职业学院","机械制造及自动化","D00113","福建省三明市农业学校",43,5,"地址：三明市沙县区长泰路16号，联系人陈老师，联系电话：13507554333，0598-8853068。收费标准：前三年按合作中职校当年缴费标准执行（免学费），后二年按合作高职校当年专科缴费标准执行。"]
[null,14,"三明医学科技职业学院","建设工程管理","D00114","福建省三明工贸学校",30,5,"地址：福建省宁化县翠江镇中环北路138号  邮编：365400  联系人：刘老师 联系电话：0598-6839293 18950912312 13559095979  邮箱：smgmxxzjc@163.com   公立校。收费：前三年按合作中职校当年缴费标准执行（免学费），后二年按合作高职校当年专科缴费标准执行。"]
[null,15,"三明医学科技职业学院","建设工程管理","D00115","福建省上杭职业中专学校",5,5,"地址：福建省龙岩市上杭县江滨东路3号  邮编：364200  联系人：江老师  联系电话：0597-3131319 ，0597-3830553   公立校  收费：前三年按合作中职校当年缴费标准执行（免学费），后二年按合作高职校当年专科缴费标准执行。"]
[null,16,"三明医学科技职业学院","酒店管理与数字化运营","D00116","福建省永安职业中专学校",40,5,"地址：永安市燕西街道上吉山268号\n联系电话：0598-3654222\n联系人：黄老师13859187600      李老师18960581365\n收费标准：前三年按合作中职校当年缴费标准执行（免学费），后二年按合作高职校当年专科缴费标准执行。"]
[null,17,"三明医学科技职业学院","汽车制造与试验技术","D00117","福建省三明工贸学校",37,5,"地址：福建省宁化县翠江镇中环北路138号  邮编：365400  联系人：刘老师  联系电话：0598-6839293 18950912312 13559095979  邮箱：smgmxxzjc@163.com   公立校  收费：前三年按合作中职校当年缴费标准执行（免学费），后二年按合作高职校当年专科缴费标准执行。"]
[null,18,"三明医学科技职业学院","视觉传达设计","D00118","福建理工学校",21,5,"学校地址：福州市仓山区洪山桥上店61号,学校网址：http//www.fjlg.com,微信公众号：福建理工学校, \n招生热线：0591-83740149， 0591-83766792，邱老师18396512182，刘老师13763832846，刘老师18750991023，郭老师17859501120；\n收费标准：前三年按合作中职校当年缴费标准执行（免学费），后二年按合作高职校当年专科缴费标准执行。"]
[null,19,"三明医学科技职业学院","数字媒体艺术设计","D00119","福建省安溪华侨职业中专学校",5,5,"地址:泉州市安溪县建安南路188号(宝龙城市广场斜对面)\n联系电话:0595-23232548，\n吴老师18065532571\n李老师18150806606\n收费标准：前三年按合作中职校当年缴费标准执行（免学费），后二年按合作高职校当年专科缴费标准执行。\n微信公众号:安溪华侨职校\n网址:www.axhqzx.com"]
[null,20,"三明医学科技职业学院","数字媒体艺术设计","D00120","三明市金湖旅游职业中专学校",36,"5","地址：三明市泰宁县许洋路福山排7号；邮编：354400；联系人：18960599816（冯老师），18950928988（徐老师）；办公室电话：0598-7832455。收费标准：前三年按合作中职校当年缴费标准执行（免学费），后二年按合作高职校当年专科缴费标准执行。"]
[null,21,"三明医学科技职业学院","体育保健与康复","D00121","清流县高级职业中学",37,5,"地址：三明市清流县龙津镇常春街89号；邮编：365300；联系人：13850800432（晏老师），19859815728（荚老师）；办公室电话：0598-5324931。\n收费标准：前三年按合作中职校当年缴费标准执行（免学费），后二年按合作高职校当年专科缴费标准执行。"]
[null,22,"三明医学科技职业学院","现代纺织技术","D00122","福建省尤溪职业中专学校",40,5,"学校地址：福建省尤溪县城关镇北门路30号\n联系电话：0598-6335345。\n收费标准：前三年按合作中职校当年缴费标准执行（免学费），后二年按合作高职校当年专科缴费标准执行。学校地址：福建省尤溪县城关镇北门路30号\n联系电话：0598-6335345。\n"]
[null,23,"三明医学科技职业学院","早期教育","D00123","福建省三明工贸学校",30,5,"地址：福建省宁化县翠江镇中环北路138号  邮编：365400  联系人：刘老师 联系电话：0598-6839293 18950912312 13559095979  邮箱：smgmxxzjc@163.com  公立校。收费：前三年按合作中职校当年缴费标准执行（免学费），后二年按合作高职校当年专科缴费标准执行。"]
[null,24,"三明医学科技职业学院","智能控制技术","D00124","福建三明林业学校",37,5,"学校地址：三明市三元区富文一路25号，http://www.fjsmlyxx.com\n联系电话：0598-8337981  8328063，18950957686(林老师),18950957509(卫老师)\n收费标准：前三年中职阶段免学费，后二年按合作高职校当年专科学费标准执行。"]
[null,25,"三明医学科技职业学院","现代物流管理","D00125","福建省福州财政金融职业中专学校",9,5,"地址：福州市仓山区闽江大道318号。邮编：350008，网址：https://cjzz.fzjy.pub/，电话：0591-83259413、0591-83700357、18950218979，联系人：翁老师、杨老师、肖老师  ，招生咨询QQ群: 950809373。收费标准：前三年按合作中职校当年缴费标准执行（免学费），后二年按合作高职校当年专科缴费标准执行。"]
[null,"二","福建水利电力职业技术学院",null,"D00200",null,{"$f":"SUM(G33:G46)","v":139},null,"福建水利电力职业技术学院是经教育部批准的全日制公办普通高等职业学院，隶属福建省教育厅，是以水利、电力为主要专业特色，机电类、电子信息类、建筑类、轨道交通类和经济管理类专业协调发展的职业院校，被列为国家优质专科高等职业院校、全国优质水利高等职业院校、福建省示范性现代职业院校，连续两期入选“福建省双高校计划”建设单位。\n学校地址：福建省永安市巴溪大道2199号 366000\n电话：0598-8823856/8823857（招生）\n官网地址：https://www.fjsdxy.com/"]
[null,1,"福建水利电力职业技术学院","水利水电工程智能管理","D00201","福建省永安职业中专学校",33,5,"地址：永安市燕西街道上吉山268号\n联系电话：0598-3654222\n联系人：黄老师13859187600      李老师18960581365\n收费标准：前三年按合作中职校当年缴费标准执行（免学费），后二年按合作高职校当年专科缴费标准执行。"]
[null,2,"福建水利电力职业技术学院","供用电技术","D00202","三明市金湖旅游职业中专学校",20,5,"地址：三明市泰宁县许洋路福山排7号；邮编：354400；联系人：18960599816（冯老师），18950928988（徐老师）；办公室电话：0598-7832455。\n收费标准：前三年免学费，后二年按合作高职校当年专科缴费标准执行。"]
[null,3,"福建水利电力职业技术学院","供用电技术","D00203","福建省三明工贸学校",20,"5","地址：福建省宁化县翠江镇中环北路138号  邮编：365400  联系人：刘老师  联系电话：0598-6839293 18950912312 13559095979  邮箱：smgmxxzjc@163.com   公立校  收费：前三年按合作中职校当年缴费标准执行（免学费），后二年按合作高职校当年专科缴费标准执行。"]
[null,4,"福建水利电力职业技术学院","供用电技术","D00204","福建工业学校",3,5,"地址：福州市仓山区洪山桥上店13号\n联系电话:0591-83768408、63187508，83771012\n联系人：郭老师 13960776591，陈老师 18649708883，杨老师 13600805016，林老师 13055421098\n收费标准：前三年免学费，后二年按合作高职校当年专科缴费标准执行。"]
[null,5,"福建水利电力职业技术学院","新能源汽车技术","D00205","厦门工商旅游学校",1,"5","学校地址:厦门市集美区天马路316号，联系电话：0592-6273227。收费标准：前三年按合作中职校当年缴费标准执行（免学费），后二年按合作高职校当年专科缴费标准执行。"]
[null,6,"福建水利电力职业技术学院","机电一体化技术","D00206","福建理工学校",18,5,"学校地址：福州市仓山区洪山桥上店61号,学校网址：http//www.fjlg.com,微信公众号：福建理工学校,\n招生热线：0591-83740149， 0591-83766792，邱老师18396512182，刘老师13763832846，刘老师18750991023，郭老师17859501120；\n收费标准：前三年免学费，后二年按合作高职校当年专科缴费标准执行。"]
[null,7,"福建水利电力职业技术学院","电子商务","D00207","福建经济学校",6,5,"地址：福州鼓楼区梅亭路17号\n联系电话：0591-83717805、83125888 、83125898、83125333\n联系人：李老师\n收费标准：前三年免学费，后二年按合作高职校当年专科缴费标准执行。"]
[null,8,"福建水利电力职业技术学院","移动互联应用技术","D00208","福建省邮电学校",7,5,"全国文明校园，福建省教育厅直属公办首批全国重点中专，国家级示范校\n学校地址：福州市仓山区上渡路李厝山60号\n联系电话：0591-83573573；柯老师：18120889973，肖老师：18120889972，林老师：18120889971（微信同号）。\n学校网站：www.fjydxx.com；微信号：福建省邮电学校。\n收费标准：前三年按合作中职校当年缴费标准执行（免学费），后二年按合作高职校当年专科缴费标准执行。"]
[null,9,"福建水利电力职业技术学院","智能控制技术","D00209","福建省邮电学校",7,"5","全国文明校园，福建省教育厅直属公办首批全国重点中专，国家级示范校\n学校地址：福州市仓山区上渡路李厝山60号\n联系电话：0591-83573573；柯老师：18120889973，肖老师：18120889972，林老师：18120889971（微信同号）。\n学校网站：www.fjydxx.com；微信号：福建省邮电学校。\n收费标准：前三年按合作中职校当年缴费标准执行（免学费），后二年按合作高职校当年专科缴费标准执行。"]
[null,10,"福建水利电力职业技术学院","数字媒体技术","D00210","福建省邮电学校",7,"5","全国文明校园，福建省教育厅直属公办首批全国重点中专，国家级示范校\n学校地址：福州市仓山区上渡路李厝山60号\n联系电话：0591-83573573；柯老师：18120889973，肖老师：18120889972，林老师：18120889971（微信同号）。\n学校网站：www.fjydxx.com；微信号：福建省邮电学校。\n收费标准：前三年按合作中职校当年缴费标准执行（免学费），后二年按合作高职校当年专科缴费标准执行。"]
[null,11,"福建水利电力职业技术学院","统计与会计核算","D00211","福建省邮电学校",7,"5","全国文明校园，福建省教育厅直属公办首批全国重点中专，国家级示范校\n学校地址：福州市仓山区上渡路李厝山60号\n联系电话：0591-83573573；柯老师：18120889973，肖老师：18120889972，林老师：18120889971（微信同号）。\n学校网站：www.fjydxx.com；微信号：福建省邮电学校。\n收费标准：前三年按合作中职校当年缴费标准执行（免学费），后二年按合作高职校当年专科缴费标准执行。"]
[null,12,"福建水利电力职业技术学院","统计与会计核算","D00212","福建商贸学校",3,"5","公办国家重点中专学校 国家示范校                                                                     地址：福州市仓山区首山路33号，邮编：350007，学校网址：www.cnfjsm.com  联系人：黄老师                                         联系电话：0591-83417987，88036065，18960732786，18960819820。\n收费标准：前三年中职院校阶段免学费，后二年按合作高职校当年专科缴费标准执行。"]
[null,13,"福建水利电力职业技术学院","水利水电工程智能管理","D00213","福建建筑学校",2,"5","学校地址：福州市仓山区洪山桥中店43号                                                                咨询电话：0591—83746460、28912388、18959111867、19206805460\n收费标准：前三年免学费，后二年按合作高职校当年专科缴费标准执行。           "]
[null,14,"福建水利电力职业技术学院","智能控制技术","D00214","福建省南安职业中专学校",5,5,"地址：南安市区成功街1号\n联系电话：0595-86386618\n联系人：刘老师 \n收费标准：前三年免学费，后二年按合作高职校当年专科缴费标准执行。"]
["福建船政交通职业学院","三","福建船政交通职业学院",null,"D00300",null,{"$f":"SUM(G48:G53)","v":13},null,"地址：福州市仓山区首山路80号，邮编：350007，联系人：叶老师 赵老师 倪老师，联系电话：0591-83511273"]
["福建船政交通职业学院",1,"福建船政交通职业学院","建设工程管理","D00301","福建建筑学校",2,5,"学校地址：福州市仓山区洪山桥中店43号                                                                咨询电话：0591—83746460、28912388；   \n郑老师18959111867、陈老师19206805460、夏老师13774540007、许老师13645008268、张老师13506990901\n收费标准：前三年免学费，后两年按合作高职校当年专科缴费标准执行。               "]
[null,2,"福建船政交通职业学院","汽车检测与维修技术","D00302","福建理工学校",3,5,"学校地址：福州市仓山区洪山桥上店61号,学校网址：http//www.fjlg.com,微信公众号：福建理工学校, \n招生热线：0591-83740149， 0591-83766792，邱老师18396512182，刘老师13763832846，刘老师18750991023，郭老师17859501120；\n收费标准：前三年按合作中职校当年缴费标准执行（免学费），后二年按合作高职校当年专科缴费标准执行。"]
["福建船政交通职业学院",3,"福建船政交通职业学院","汽车检测与维修技术","D00303","福建工业学校",2,5,"校址：福州市仓山区洪山桥上店13号，邮编：350002，学校网址：https://www.fjgx.cn/，招生热线:0591-83768408  、63187508，83771012.联系人：郭老师：13960776591，陈老师：18649708883，杨老师：13600805016，林老师：13055421098.收费标准：前三年按合作中职校当年缴费标准执行（免学费），后两年按合作高职校当年专科缴费标准执行。"]
["福建船政交通职业学院",4,"福建船政交通职业学院","轮机工程技术","D00304","福建航运学校",3,5,"学校校址：福州市马尾区新民村35号\n咨询电话：0591-83682392\n          13960835859（郭老师）\n          13706963836（吴老师）\n          13685041053（韩老师）\n身体条件：应符合国家海事局规定的船员体检标准（GB30035-2021),身高在1.55米及以上，双眼裸视力均能达到0.4（4.6）及以上；或双眼裸视力均能达0.1（4.0）及以上，且矫正视力均能达到0.4（4.6）及以上，无色盲色弱等。\n收费标准：前三年按合作中职校当年缴费标准执行（免学费），后二年按合作高职校当年专科缴费标准执行。"]
["福建船政交通职业学院",5,"福建船政交通职业学院","电子商务","D00305","福建省邮电学校",1,5,"学校地址：福州市仓山区上渡路李厝山60号。                        \n联系人：18120889973（柯老师）\n        18120889972（肖老师）\n        18120889971（林老师）（微信同号）\n学校网站：www.fjydxx.com;\n学校微信：福建省邮电学校。\n咨询电话：0591-83573573\n收费标准：前三年按合作中职校当年缴费标准执行（免学费），后二年按合作高职校当年专科缴费标准执行。"]
[null,6,"福建船政交通职业学院","电气自动化技术","D00306","福州经济技术开发区职业中专学校",2,"5","学校地址：福州马尾罗建西1号，\n咨询电话：0591-83957273\n联系人：陈老师\nQQ咨询：656573825\n收费标准：前三年按合作中职校当年缴费标准执行（免学费），后二年按合作高职校当年专科缴费标准执行。"]
["福建信息职业技术学院","四","福建信息职业技术学院",null,"D00400",null,{"$f":"SUM(G55:G63)","v":50},null,"校址：福州鼓楼福飞南路106号（龙腰校区）；福州市仓山区螺洲杜园118号（杜园校区）；平潭综合实验区麒麟大道西段1号（平潭校区）,联系人;王老师 郑老师  联系电话：0591-87833394 ；87863074，网址：https://www.fjpit.edu.cn/zs/"]
["福建信息职业技术学院",1,"福建信息职业技术学院","大数据与会计","D00401","福建省三明工贸学校",30,5,"地址：福建省宁化县翠江镇中环北路138号  邮编：365400  联系人：刘老师  联系电话：0598-6839293 18950912312 13559095979  邮箱：smgmxxzjc@163.com   公立校  收费：前三年按合作中职校当年缴费标准执行（免学费），后二年按合作高职校当年专科缴费标准执行。"]
["福建信息职业技术学院",2,"福建信息职业技术学院","现代通信技术","D00402","福建省邮电学校",1,5,"地址：福州市仓山区上渡路李厝山60号，联系电话：0591-83573573；柯老师：18120889973，肖老师：18120889972，林老师：18120889971（微信同号）\n收费标准：前三年按合作中职校当年缴费标准执行（免学费），后两年按合作高职校当年专科缴费标准执行。"]
[null,3,"福建信息职业技术学院","旅游管理","D00403","福建商贸学校",1,"5","公办国家重点中专学校 国家示范校                                                                     地址：福州市仓山区首山路33号，邮编：350007，学校网址：www.cnfjsm.com  联系人：黄老师                                         联系电话：0591-83417987，88036065，18960732786，18960819820。\n收费标准：前三年中职院校阶段免学费，后两年按合作高职校当年专科缴费标准执行。"]
[null,4,"福建信息职业技术学院","信息安全技术应用","D00404","福建理工学校",2,"5","学校地址：福州市仓山区洪山桥上店61号,学校网址：http//www.fjlg.com,微信公众号：福建理工学校, \n招生热线：0591-83740149， 0591-83766792，邱老师18396512182，刘老师13763832846，刘老师18750991023，郭老师17859501120；\n 收费标准：前三年按合作中职校当年缴费标准执行（免学费），后两年按合作高职校当年专科缴费标准执行。   "]
[null,5,"福建信息职业技术学院","新能源汽车技术","D00405","福建理工学校",8,"5","学校地址：福州市仓山区洪山桥上店61号,学校网址：http//www.fjlg.com,微信公众号：福建理工学校, \n招生热线：0591-83740149， 0591-83766792，邱老师18396512182，刘老师13763832846，刘老师18750991023，郭老师17859501120；\n 收费标准：该专业执行一贯制教学，五年都在联办中职学校就读培养。前三年按合作中职校当年缴费标准执行（免学费），后两年按合作高职校当年专科缴费标准执行。   "]
[null,5,"福建信息职业技术学院","建筑装饰工程技术","D00406","福建建筑学校",2,5,"学校地址：福州市仓山区洪山桥中店43号，邮编：350002，联系电话：0591-83746460；28912388；18959111867；19206805460。            收费标准：前三年免学费，后两年按合作高职校当年专科缴费标准执行。      "]
["福建信息职业技术学院",6,"福建信息职业技术学院","物联网应用技术","D00407","福建经济学校",1,5,"地址：福州市鼓楼区梅亭路17号，邮编：350003，电话：0591-83125333,83125888,83125889。      联系人：李老师，黄老师；            收费标准：前三年按合作中职校当年缴费标准执行（免学费），后两年按合作高职校当年专科缴费标准执行。"]
[null,7,"福建信息职业技术学院","电子信息工程技术","D00408","福建经济学校",1,"5","地址：福州市鼓楼区梅亭路17号，邮编：350003，电话：0591-83125333,83125888,83125889。      联系人：李老师，黄老师。         收费标准：前三年按合作中职校当年缴费标准执行（免学费），后两年按合作高职校当年专科缴费标准执行。"]
[null,8,"福建信息职业技术学院","工业机器人技术","D00409","福建工业学校",4,"5","学校地址：福州市仓山区洪山桥上店13号\n联系电话：0591-83768408    0591-63187508    0591-83771012联系人：郭老师13960776591    陈老师18649708883   杨老师13600805016    林老师13055421098\n收费标准：该专业执行一贯制教学，五年都在联办中职学校就读培养。前三年按合作中职校当年缴费标准执行（免学费），后两年按合作高职校当年专科缴费标准执行。"]
["福建幼儿师范高等专科学校","五","福建幼儿师范高等专科学校",null,"D00500",null,{"$f":"SUM(G65:G75)","v":19},null,"位于福建省福州市，为福建省教育厅直属公办师范类高等专科院校，地址：福州市仓山区长安路89号。邮编：350007，联系人：陈老师，联系电话0591-87912254，网址：http://www.fjys.edu.cn/"]
[null,1,"福建幼儿师范高等专科学校","艺术设计","D00501","福建理工学校",2,"5","地址:福州市仓山区洪山桥上店61号  学校网址：http//www.fjlg.com  微信公众号：福建理工学校\n联系电话:0591-83740149， 0591-83766792，邱老师18396512182，刘老师13763832846，刘老师18750991023，郭老师17859501120。收费标准:前三年按作中职校当年缴费标准执行(免学费)，后二年按合作高职校当年专科缴费标准执行。"]
[null,2,"福建幼儿师范高等专科学校","嵌入式技术应用","D00502","福建理工学校",2,5,"地址:福州市仓山区洪山桥上店61号   学校网址：http//www.fjlg.com  微信公众号：福建理工学校\n联系电话:0591-83740149， 0591-83766792，邱老师18396512182，刘老师13763832846，刘老师18750991023，郭老师17859501120。收费标准:前三年按作中职校当年缴费标准执行(免学费)，后二年按合作高职校当年专科缴费标准执行。"]
[null,3,"福建幼儿师范高等专科学校","研学旅行管理与服务","D00503","福建理工学校",2,5,"地址:福州市仓山区洪山桥上店61号  学校网址：http//www.fjlg.com   微信公众号：福建理工学校\n联系电话:0591-83740149， 0591-83766792，邱老师18396512182，刘老师13763832846，刘老师18750991023，郭老师17859501120。收费标准:前三年按作中职校当年缴费标准执行(免学费)，后二年按合作高职校当年专科缴费标准执行。"]
[null,4,"福建幼儿师范高等专科学校","首饰设计与工艺","D00504","福建商贸学校",1,"5","公办国家重点中专学校 国家示范校                                                                           地址：福州市仓山区首山路33号，邮编：350007，学校网址：www.cnfjsm.com  联系人：黄老师                                         联系电话：0591-83417987，88036065，18960732786，18960819820。\n收费标准：前三年中职院校阶段免学费，后二年按合作高职校当年专科缴费标准执行。"]
[null,5,"福建幼儿师范高等专科学校","婴幼儿托育服务与管理","D00505","福建商贸学校",1,"5","公办国家重点中专学校 国家示范校                                                                    地址：福州市仓山区首山路33号，邮编：350007，学校网址：www.cnfjsm.com  联系人：黄老师                                         联系电话：0591-83417987，88036065，18960732786，18960819820。\n收费标准：前三年中职院校阶段免学费，后二年按合作高职校当年专科缴费标准执行。"]
[null,6,"福建幼儿师范高等专科学校","嵌入式技术应用","D00506","福建商贸学校",1,"5","地址：福州市仓山区首山路33号，邮编：350007，学校网址：www.cnfjsm.com  联系人：黄老师                                         联系电话：0591-83417987，88036065，18960732786，18960819820。\n收费标准：前三年中职院校阶段免学费，后二年按合作高职校当年专科缴费标准执行。"]
["福建幼儿师范高等专科学校",7,"福建幼儿师范高等专科学校","数字媒体技术","D00507","福建建筑学校",2,5,"学校地址：福州市仓山区洪山桥中店43号                                                           咨询电话：0591—83746460、28912388、18959111867、19206805460 。收费标准:前三年免学费，后二年按合作高职校当年专科缴费标准执行2026年学费6000元/生.学年)。"]
[null,8,"福建幼儿师范高等专科学校","艺术设计","D00508","福建建筑学校",2,"5","学校地址：福州市仓山区洪山桥中店43号                                                           咨询电话：0591—83746460、28912388、18959111867、19206805460 。收费标准:前三年免学费，后二年按合作高职校当年专科缴费标准执行。"]
[null,9,"福建幼儿师范高等专科学校","艺术教育","D00509","福建经济学校",2,"5","师范类，以培养美术方向人才为主。色盲、色弱考生不宜报考 。根据考生中考成绩总分，按计划数从高分到低分择优录取。\n收费标准:前三年免学费,后二年按合作高职校当年专科缴费标准执行。 \n地址：福州市仓山区施埔后路17号。邮编：350007，\n联系人：李老师，联系电话：0591-83125888、83125333、83125889；"]
["福建幼儿师范高等专科学校",10,"福建幼儿师范高等专科学校","艺术设计","D00510","福建工业学校",2,5,"校址：福州市仓山区洪山桥上店13号，邮编：350002，学校网址：https://www.fjgx.cn/，招生热线:0591-83768408  、63187508，83771012.联系人：郭老师：13960776591，陈老师：18649708883，杨老师：13600805016，林老师：13055421098.收费标准：前三年按合作中职校当年缴费标准执行（免学费），后两年按合作高职校当年专科缴费标准执行。"]
[null,11,"福建幼儿师范高等专科学校","社会工作","D00511","福建省民政学校",2,"5","前三年联办校地址：福建省福州市连江县丹阳镇桂林村澳中121号（福建省民政学校）\n联系电话：0591-83531120、83537518、87723722                                                                                                                                                                                 学费标准：前三年中职阶段免学费，后两年按合作高职校当年专科缴费标准执行。"]
["福建林业职业技术学院","六","福建林业职业技术学院",null,"D00600",null,{"$f":"SUM(G77:G94)","v":357},null,"地址：南平市延平区海瑞路1号，联系人：黄老师、唐老师，电话：0599-8461667，网址：https://www.fjlzy.com/"]
["福建林业职业技术学院",1,"福建林业职业技术学院","林业技术","D00601","福建三明林业学校",33,5,"学校地址：三明市三元区富文一路25号，http://www.fjsmlyxx.com\n联系电话：0598-8337981  8328063，18950957686(林老师),18950957509(卫老师)\n收费标准：前三年中职阶段免学费，后二年按合作高职校当年专科学费标准执行。"]
["福建林业职业技术学院",2,"福建林业职业技术学院","园林技术","D00602","福建三明林业学校",33,5,"学校地址：三明市三元区富文一路25号，http://www.fjsmlyxx.com\n联系电话：0598-8337981  8328063，18950957686(林老师),18950957509(卫老师)\n收费标准：前三年中职阶段免学费，后二年按合作高职校当年专科学费标准执行。"]
[null,3,"福建林业职业技术学院","园林技术","D00603","福建生态工程职业技术学校",3,"5","学校地址：福州市仓山区上渡尤溪洲191号，网址：http://www.fjstgc.cn/\n联系电话：0591-83590477，0591-83266892，丁老师19204907187，林老师19055498509\n学费标准：前三年中职阶段免学费，后两年按合作高职校当年收费标准执行。"]
["福建林业职业技术学院",4,"福建林业职业技术学院","建筑室内设计","D00604","福建生态工程职业技术学校",2,5,"学校地址：福州市仓山区上渡尤溪洲191号，网址：http://www.fjstgc.cn/\n联系电话：0591-83590477，0591-83266892，丁老师19204907187，林老师19055498509\n学费标准：前三年中职阶段免学费，后两年按合作高职校当年收费标准执行。"]
[null,5,"福建林业职业技术学院","园林工程技术","D00605","福建生态工程职业技术学校",3,"5","学校地址：福州市仓山区上渡尤溪洲191号，网址：http://www.fjstgc.cn/\n联系电话：0591-83590477，0591-83266892，丁老师19204907187，林老师19055498509\n学费标准：前三年中职阶段免学费，后两年按合作高职校当年收费标准执行。"]
["福建林业职业技术学院",6,"福建林业职业技术学院","风景园林设计","D00606","福建省三明市农业学校",34,5,"地址：三明市沙县区长泰路16号，邮编：365050，                                                        联系人：陈老师，联系电话：13507554333，0598-8853068。                                               收费标准：前三年中职阶段免学费，后二年按合作高职校当年专科学费标准执行。"]
["福建林业职业技术学院",7,"福建林业职业技术学院","建筑室内设计","D00607","福建省三明市农业学校",34,5,"地址：三明市沙县区长泰路16号，邮编：365050，                                                        联系人：陈老师，联系电话：13507554333，0598-8853068。                                               收费标准：前三年中职阶段免学费，后二年按合作高职校当年专科学费标准执行。"]
["福建林业职业技术学院",8,"福建林业职业技术学院","风景园林设计","D00608","福建省永安职业中专学校",32,5,"地址：永安市燕西街道上吉山268号\n联系电话：0598-3654222\n联系人：黄老师13859187600      李老师18960581365\n收费标准：前三年按合作中职校当年缴费标准执行（免学费），后二年按合作高职校当年专科缴费标准执行。"]
["福建林业职业技术学院",9,"福建林业职业技术学院","旅游管理","D00609","福建省永安职业中专学校",28,5,"地址：永安市燕西街道上吉山268号\n联系电话：0598-3654222\n联系人：黄老师13859187600      李老师18960581365\n收费标准：前三年按合作中职校当年缴费标准执行（免学费），后二年按合作高职校当年专科缴费标准执行。"]
[null,10,"福建林业职业技术学院","会计信息管理","D00610","南平市武夷旅游商贸学校",2,"5","学校地址：南平市建阳区童游街道童泽路51号\n联系电话：18605995018，联系人：黄老师\n收费标准：前三年中职阶段免学费，后二年按合作高职校当年专科学费标准执行。"]
["福建林业职业技术学院",11,"福建林业职业技术学院","市政工程技术","D00611","福建三明林业学校",28,5,"学校地址：三明市三元区富文一路25号，http://www.fjsmlyxx.com\n联系电话：0598-8337981  8328063，18950957686(林老师),18950957509(卫老师)\n收费标准：前三年中职阶段免学费，后二年按合作高职校当年专科学费标准执行。"]
["福建林业职业技术学院",12,"福建林业职业技术学院","无人机应用技术","D00612","福建三明林业学校",28,5,"学校地址：三明市三元区富文一路25号，http://www.fjsmlyxx.com\n联系电话：0598-8337981  8328063，18950957686(林老师),18950957509(卫老师)\n收费标准：前三年中职阶段免学费，后二年按合作高职校当年专科学费标准执行。"]
[null,13,"福建林业职业技术学院","园艺技术","D00613","福建生态工程职业技术学校",3,"5","学校地址：福州市仓山区上渡尤溪洲191号，网址：http://www.fjstgc.cn/\n联系电话：0591-83590477，0591-83266892，丁老师19204907187，林老师19055498509\n学费标准：前三年中职阶段免学费，后两年按合作高职校当年收费标准执行。"]
[null,14,"福建林业职业技术学院","无人机应用技术","D00614","福建省尤溪职业中专学校",30,"5","学校地址：福建省尤溪县城关镇北门路30号\n联系电话：0598-6335345。\n收费标准：前三年按合作中职校当年缴费标准执行（免学费），后二年按合作高职校当年专科缴费标准执行。"]
[null,15,"福建林业职业技术学院","园艺技术","D00615","福建省龙岩市农业学校",3,"5","地址：龙岩市新罗区南城横山路6号\n联系人：林文明\n电话：13600998280\n学费标准：前三年中职校免学费，后两年按合作高职校当年收费标准执行。"]
[null,16,"福建林业职业技术学院","建筑智能化工程技术","D00616","福建建筑学校",2,"5","学校地址：福州市仓山区洪山桥中店43号                                                                咨询电话：0591—83746460、28912388、18959111867、19206805460 。收费标准:前三年免学费，后二年按合作高职校当年专科缴费标准执行。"]
[null,17,"福建林业职业技术学院","旅游管理","D00617","建宁县职业中学",20,5,"地址：福建省建宁县溪口镇东坑59号，邮编：354500，联系人：叶老师：18950936516；余老师：18859871535.招生办公室：0598-3989662\n    收费标准：前三年中职阶段免学费，后二年按合作高职校当年专科学费标准执行。"]
["福建林业职业技术学院",18,"福建林业职业技术学院","园艺技术","D00618","福建省三明市农业学校",39,5,"地址：三明市沙县区长泰路16号，邮编：365050，                                                        联系人：陈老师，联系电话：13507554333，0598-8853068。                                               收费标准：前三年中职阶段免学费，后二年按合作高职校当年专科学费标准执行。"]
["厦门海洋职业技术学院","七","福建艺术职业学院",null,"D00700",null,{"$f":"SUM(G96:G98)","v":4},null,"位于福建省福州市，是经福建省人民政府批准设立、教育部备案的全日制普通高等职业院校，是文旅部中国非物质文化遗产传承人群研修研习培训计划首批试点高校，国家非物质文化遗产人才培养基地，全国文化艺术职业教育和旅游职业教育提质培优行动计划项目建设单位。"]
["厦门海洋职业技术学院",1,"福建艺术职业学院","音乐表演","D00701","自办",2,5,"艺术类，需面试。需参加4月25日我校专业技能考试（面试）成绩合格。\n联系人：卞老师 联系电话：0591-38268178；\n音乐表演专业设置于贵安校区办学，地址：福州市连江县潘渡镇贵新社区沁园路16号。\n学费标准：前三年免学费，后二年按合作高职校当年专科学费标准执行。"]
[null,2,"福建艺术职业学院","艺术设计","D00702","福建商贸学校",1,"5","艺术类，无需面试。                                                                                公办国家重点中专学校 国家示范校                                                                                       地址：福州市仓山区首山路33号， 邮编：350007，学校网址：www.cnfjsm.com     \n联系人：黄老师、林老师 联系电话：0591-88036065，83417987，18960732786,18960819820。\n收费标准：前三年免学费，后二年按合作高职校当年专科学费标准执行。"]
["厦门海洋职业技术学院",6,"福建艺术职业学院","时尚表演与传播","D00703","福州文教职业中专学校",1,5,"艺术类，无需面试。走读生男女不限，不招收男寄宿生，福州市区外且是女生可申请（新生户籍所在地、常住地址、初中校中有在鼓楼区、台江区、晋安区、仓山区的不提供住宿）\n地址：福州市台江区交通路22号\n网址：https://wjzz.fzjy.pub/\n邮箱：wjzzzjc@163.com\n联系电话：0591－83332015、13559146552、13509371245\n联系人：林老师、李老师、叶老师\n学费标准：前三年免学费，后二年按合作高职校当年专科学费标准执行。"]
["福建农业职业技术学院","八","福建农业职业技术学院",null,"D00800",null,{"$f":"SUM(G100:G111)","v":139},null,"位于福州市，是一所经中华人民共和国教育部批准，由福建省教育厅主管的专科层次的公办全日制普通高等学校 ，学院是福建省19所示范性现代职业院校之一。全国新型职业农民培育示范基地、全国休闲农业与乡村旅游示范点。首山校区：福州市仓山区上三路190号，相思岭校区：福州市福清镜洋镇红星村龟山116号。联系人：沈老师、郑老师：0591-83420158；0591-83420178 前三年中职阶段免学费，后二年按合作高职校当年专科学费标准执行。"]
["福建农业职业技术学院",1,"福建农业职业技术学院","食品智能加工技术","D00801","福建海洋职业技术学校",1,"5","校址：福州市晋安区山北路75号,电话：0591—83648412  0591-88610121 联系人:朱老师 13850169208，黄老师15960037708，吴老师15060041263，严老师13860313856，张老师18960790065，杨老师18250195663\n学费标准：前三年免学费，后二年按合作高职校当年专科学费标准执行。"]
["福建农业职业技术学院",2,"福建农业职业技术学院","物联网应用技术","D00802","福建商贸学校",1,5,"公办国家重点中专学校 国家示范校                                                                                    地址：福州市仓山区首山路33号，邮编：350007，学校网址：www.cnfjsm.com  联系人：黄老师                                         联系电话：0591-83417987，88036065，18960732786，18960819820。\n收费标准：前三年中职院校阶段免学费，后二年按合作高职校当年专科学费标准执行。"]
[null,3,"福建农业职业技术学院","物联网应用技术","D00803","福建三明林业学校",24,"5","学校地址：三明市三元区富文一路25号，http://www.fjsmlyxx.com\n联系电话：0598-8337981  8328063，18950957686(林老师),18950957509(卫老师)\n收费标准：前三年中职阶段免学费，后二年按合作高职校当年专科学费标准执行。"]
["福建农业职业技术学院",4,"福建农业职业技术学院","食品智能加工技术","D00804","福建省三明市农业学校",26,5,"地址：三明市沙县区长泰路16号，邮编：365050，联系人：陈老师，联系电话：13507554333，0598-8853068。\n收费标准：前三年中职院校阶段免学费，后二年按合作高职校当年专科学费标准执行。"]
[null,5,"福建农业职业技术学院","畜牧兽医","D00805","福建省龙岩市农业学校",1,"5","地址:龙岩市新罗区南城横山路六号，邮编：364000，联系人:何苏宁老师，联系电话：15392379080。\n收费标准：前三年中职院校阶段免学费，后二年按合作高职校当年专科学费标准执行。"]
[null,6,"福建农业职业技术学院","畜牧兽医","D00806","福建省永安职业中专学校",26,5,"地址：永安市燕西街道上吉山268号\n联系电话：0598-3654222\n联系人：黄老师13859187600      李老师18960581365\n收费标准：前三年按合作中职校当年缴费标准执行（免学费），后二年按合作高职校当年专科缴费标准执行。"]
[null,7,"福建农业职业技术学院","畜牧兽医","D00807","福建省三明市农业学校",30,5,"地址：三明市沙县区长泰路16号，邮编：365050，联系人：陈老师，联系电话：13507554333，0598-8853068。\n收费标准：前三年中职院校阶段免学费，后二年按合作高职校当年专科学费标准执行。"]
[null,8,"福建农业职业技术学院","宠物养护与驯导","D00808","福建省将乐职业中专学校",11,"5","地址：福建省三明市将乐县古镛镇龟山东路171号，邮编：353300，联系人：张老师13599364238；邱老师18759832968，联系电话：0598-2265020。\n收费标准：前三年中职院校阶段免学费，后二年按合作高职校当年专科学费标准执行。"]
[null,9,"福建农业职业技术学院","园林技术","D00809","建宁县职业中学",16,"5","地址：福建省建宁县溪口镇东坑59号，邮编：354500，联系人：叶老师：18950936516；余老师：18859871535.招生办公室：0598-3989662\n收费标准：前三年中职院校阶段免学费，后二年按合作高职校当年专科学费标准执行。"]
[null,10,"福建农业职业技术学院","园林技术","D00810","福建省龙岩市农业学校",1,"5","地址:龙岩市新罗区南城横山路六号，邮编：364000，联系人:林文明老师，联系电话：13600998280。\n收费标准：前三年中职院校阶段免学费，后二年按合作高职校当年专科学费标准执行。"]
["福建农业职业技术学院",11,"福建农业职业技术学院","金融服务与管理","D00811","福建商贸学校",1,"5","公办国家重点中专学校 国家示范校                                                                     地址：福州市仓山区首山路33号，邮编：350007，学校网址：www.cnfjsm.com  联系人：黄老师                                         联系电话：0591-83417987，88036065。18960732786，18960819820。\n收费标准：前三年中职院校阶段免学费，后二年按合作高职校当年专科学费标准执行。"]
["福建农业职业技术学院",12,"福建农业职业技术学院","金融服务与管理","D00812","福建省邮电学校",1,"5","全国文明校园，福建省教育厅直属公办首批全国重点中专，国家级示范校\n学校地址：福州市仓山区上渡路李厝山60号\n联系电话：0591-83573573；柯老师：18120889973，肖老师：18120889972，林老师：18120889971（微信同号）。\n学校网站：www.fjydxx.com；微信号：福建省邮电学校。\n收费标准：前三年按合作中职校当年缴费标准执行（免学费），后二年按合作高职校当年专科缴费标准执行。"]
[null,"九","福建卫生职业技术学院",null,"D00900",null,{"$f":"SUM(G113)","v":3},null,"福建卫生职业技术学院（Fujian Health College），简称闽卫院，位于福建省福州市，是一所由福建省人民政府举办的公办全日制普通高等职业技术学校，是福建省高水平职业院校和专业计划（A类）立项建设单位。学校地址：福建省福州市闽侯荆溪关口366号。 联系人：陈老师，联系电话：0591-22869955，传真：0591-22869956， 网址：https://www.fjwzy.edu.cn。前三年中职阶段免学费，后二年按合作高职校当年专科缴费标准执行。"]
[null,1,"福建卫生职业技术学院","智能医疗装备技术","D00901","福建铁路机电学校",3,5,"地址：福州市晋安区桂山路109号  联系电话：0591-88619052 /18859168896\n联系人：许老师  建议色盲、色弱考生不报考该专业"]
[null,"十","厦门海洋职业技术学院",null,"D01000",null,{"$f":"G115","v":2},null,"学校是由福建省人民政府举办的一所全日制普通高等职业院校，是福建省示范性高等职业院校建设单位、福建省创新创业创造教育示范院校建设单位、福建省示范性现代职业院校。      学校党政办公室：0592-7769308  招生办公室：0592-7769322  7769288  "]
[null,1,"厦门海洋职业技术学院","数字媒体技术","D01001","厦门工商旅游学校",2,"5","地址：厦门市集美区天马路316号，联系电话0592-6273227/6273240。收费标准：中职阶段按合作中职校当年缴费标准执行（免学费），高职阶段按合作高职校当年专科缴费标准执行。"]
["福建卫生职业技术学院","十一","福建体育职业技术学院",null,"D01100",null,{"$f":"SUM(G117:G118)","v":41},null,"学院地址：福州市鼓楼区福飞路151号（校本部）；福州市仓山区齐安路756号（仓山教学点）。\n,联系人：柳老师、林老师，联系电话：0591-87722512；彭老师，联系电话：0591-87731192。                                   "]
["福建卫生职业技术学院",1,"福建体育职业技术学院","运动训练","D01101","自办",40,5,"体育类（报考学生需参加由高职校组织的体育技能测试），收费标准：前三年免交学费，后二年按合作高职校当年专科缴费标准执行。"]
[null,2,"福建体育职业技术学院","足球运动与管理","D01102","自办",1,"5","体育类（报考学生需参加由高职校组织的体育技能测试），收费标准：前三年免交学费，后二年按合作高职校当年专科缴费标准执行。"]
["闽江师范高等专科学校","十二","闽北职业技术学院",null,"D01200",null,{"$f":"SUM(G120:G121)","v":11},null,"闽北职业技术学院（MinBei Vocational and Technical College），简称“闽北职院”（MBVTC），位于福建省南平市延平区，是经福建省人民政府批准、教育部备案，由南平市人民政府举办、福建省教育厅主管的公办全日制普通高等专科职业学校，是福建省高职高水平专业群建设单位。地址：福建省南平市延平区职教园区海瑞路9号  联系电话：0599—6133008"]
["闽江师范高等专科学校",1,"闽北职业技术学院","大数据与会计","D01201","福建省福州环保职业中专学校",5,5,"地址：福州市仓山区洪塘路316号\n联系人：陈老师、高老师\n电话：0591-83743212 0591-83740340；林老师19890586501 陈老师19890586502  陈老师19890586503\n学费标准：前三年中职校免学费，后两年按合作高职校当年收费标准执行。"]
["闽江师范高等专科学校",2,"闽北职业技术学院","建筑室内设计","D01202","福建经济学校",6,5,"首批全国文明校园，地址：福州市鼓楼区梅亭路17号。邮编：350002，\n联系人：李老师，联系电话：0591-83125888、83125333、83125889；前三年免学费，后二年按合作高职校当年专科缴费标准执行。"]
["泉州经贸职业技术学院","十三","福州职业技术学院",null,"D01300",null,{"$f":"SUM(G123)","v":25},null,"学校坐落于福州市大学城，经福建省人民政府批准成立、教育部备案，由福州市人民政府举办的全日制普通高等职业学校。"]
["泉州经贸职业技术学院",1,"福州职业技术学院","新能源汽车技术","D01301","福建三明林业学校",25,5,"学校地址：三明市三元区富文一路25号，http://www.fjsmlyxx.com\n联系电话：0598-8337981  8328063，18950957686(林老师),18950957509(卫老师)\n收费标准：前三年中职阶段免学费，后二年按合作高职校当年专科学费标准执行。"]
["泉州经贸职业技术学院","十四","泉州经贸职业技术学院",null,"D01400",null,{"$f":"SUM(G125:G125)","v":42},null,"地址：福建省泉州市鲤城区南环路1129号 联系人：吴老师 联系电话：0595-28050699、22487775"]
["泉州经贸职业技术学院",1,"泉州经贸职业技术学院","数字媒体艺术设计","D01401","福建省永安职业中专学校",42,5,"地址：永安市燕西街道上吉山268号\n联系电话：0598-3654222\n联系人：黄老师13859187600      李老师18960581365\n收费标准：前三年按合作中职校当年缴费标准执行（免学费），后二年按合作高职校当年专科缴费标准执行。"]
[null,"十五","湄洲湾职业技术学院",null,"D01500",null,{"$f":"SUM(G127)","v":100},null,"地址：莆田市涵江区梧塘荔涵东大道1001号；联系电话：0594-8166999；"]
[null,1,"湄洲湾职业技术学院","应用化工技术","D01501","清流县高级职业中学",100,5,"中职校地址：三明市清流县龙津镇常春街89号 联系电话：0598-5324931； \n收费标准：前三年免学费，后二年按合作高职校当年专科缴费标准执行。"]
[null,"十六","集美工业职业学院",null,"D01600",null,{"$f":"SUM(G129)","v":15},null,"一所经福建省人民政府批准，教育部备案，由厦门市人民政府举办，实行省市两级管理、以厦门市为主的管理体制的专科层次的公办全日制高等职业学院。地址：厦门市集美区杏前路22号；联系人：陈老师；联系电话：0592-7790019‌；"]
[null,1,"集美工业职业学院","工业机器人技术","D01601","三明市金湖旅游职业中专学校",15,5,"地址：三明市泰宁县许洋路福山排7号；邮编：354400；联系人：18960599816（冯老师），15159118397（陈老师）；办公室电话：0598-7832455。\n收费标准：前三年免学费，后二年按合作高职校当年专科缴费标准执行。"]
["福建华南女子职业学院","十七","福建华南女子职业学院（民办）",null,"D01700",null,{"$f":"SUM(G131:G135)","v":10},null,"地址：福建省福州市闽侯县上街镇学府南路66号；联系电话：0591-87429966"]
["福建华南女子职业学院",1,"福建华南女子职业学院（民办）","空中乘务","D01701","福建省民政学校",2,5,"前三年联办校地址：福建省福州市连江县丹阳镇桂林村澳中121号（福建省民政学校）\n联系电话：0591-83531120、83537518、87723722\n身高：男生170－185cm，女生160－172cm                                                                                                 体型匀称，五官端正，无纹身，无疤痕                                                                                      学费标准：前三年中职阶段免学费，后两年按合作高职校当年专科缴费标准执行。"]
[null,2,"福建华南女子职业学院（民办）","智慧健康养老服务与管理","D01702","福建省民政学校",2,"5","前三年联办校地址：福建省福州市连江县丹阳镇桂林村澳中121号（福建省民政学校）\n联系电话：0591-83531120、83537518、87723722\n学费标准：前三年中职阶段免学费，后两年按合作高职校当年专科缴费标准执行。"]
[null,3,"福建华南女子职业学院（民办）","空中乘务","D01703","福建商贸学校",2,5,"公办国家重点中专学校 国家示范校                                                                         地址：福州市仓山区首山路33号，邮编：350007，学校网址：www.cnfjsm.com  联系人：黄老师                                         联系电话：0591-83417987，88036065，18960732786，18960819820。\n收费标准：前三年中职院校阶段免学费，后两年按合作高职校当年专科缴费标准执行。"]
["福建华南女子职业学院",4,"福建华南女子职业学院（民办）","人物形象设计","D01704","福建商贸学校",2,5,"公办国家重点中专学校 国家示范校                                                                                   地址：福州市仓山区首山路33号，邮编：350007，学校网址：www.cnfjsm.com  联系人：黄老师                                         联系电话：0591-83417987，88036065，18960732786，18960819820。\n收费标准：前三年中职院校阶段免学费，后两年按合作高职校当年专科缴费标准执行。"]
[null,5,"福建华南女子职业学院（民办）","跨境电子商务","D01705","福建建筑学校",2,"5","学校地址：福州市仓山区洪山桥中店43号                                                                咨询电话：0591—83746460、28912388、18959111867、19206805460 。收费标准:前三年免学费，后二年按合作高职校当年专科缴费标准执行。"]
["泉州纺织服装职业学院","十八","厦门演艺职业学院（民办）",null,"D01800",null,{"$f":"SUM(G137:G139)","v":15},null,"地址：福建省厦门市翔安区翔安东路1995号‌，邮编:361101，联系电话：0592-3668016、0592-3668017、0592-3668015。学校官网网址：https://www.xmyanyi.com/"]
["泉州纺织服装职业学院",1,"厦门演艺职业学院（民办）","音乐表演","D01801","自办",5,5,"艺术类，收费标准：前三年学费9000元/年，后两年高职学费16000元/年。"]
["泉州纺织服装职业学院",2,"厦门演艺职业学院（民办）","舞蹈表演","D01802","自办",5,5,"艺术类，收费标准：前三年学费9500元/年，后两年高职学费18000元/年。"]
[null,3,"厦门演艺职业学院（民办）","国际标准舞","D01803","自办",5,5,"艺术类，收费标准：前三年学费9500元/年，后两年高职学费18000元/年。"]
["厦门华天涉外职业技术学院","十九","厦门华天涉外职业技术学院（民办）",null,"D01900",null,{"$f":"SUM(G141:G142)","v":60},null,"地址：厦门市翔安区新店镇文教园洪钟大道5088号，陈毅文，0592-7767777"]
["厦门华天涉外职业技术学院",1,"厦门华天涉外职业技术学院（民办）","会计信息管理","D01901","福建省三明市农业学校",30,5,"地址：三明市沙县区长泰路16号，邮编：365050，                                             联系人：陈老师，联系电话：13507554333，0598-8853068。                                       收费标准：前三年中职阶段免学费，后二年按合作高职校当年专科学费标准执行。"]
[null,2,"厦门华天涉外职业技术学院（民办）","烹饪工艺与营养","D01902","福建省永安职业中专学校",30,"5","地址：永安市燕西街道上吉山268号\n联系电话：0598-3654222\n联系人：黄老师13859187600      李老师18960581365\n收费标准：前三年按合作中职校当年缴费标准执行（免学费），后二年按合作高职校当年专科缴费标准执行。"]
["福州软件职业技术学院","二十","福州软件职业技术学院（民办）",null,"D02000",null,{"$f":"SUM(G144:G155)","v":27},null,"位于福建省福州市长乐区滨海大道999号，。网址：https://www.fzrjxy.com，/，招生咨询：QQ群号178669772、联系电话：0591-83843292  18905009495（微信同号）"]
[null,1,"福州软件职业技术学院（民办）","数字媒体技术","D02001","福建理工学校",6,"5","地址:福州市仓山区洪山桥上店61号   学校网址：http//www.fjlg.com  微信公众号：福建理工学校\n联系电话:0591-83740149， 0591-83766792，邱老师18396512182，刘老师13763832846，刘老师18750991023，郭老师17859501120。\n收费标准：前三年免学费，后两年按合作高职校当年专科缴费标准执行（2026年学费13500元/生·学年）。"]
[null,2,"福州软件职业技术学院（民办）","软件技术","D02002","福建省邮电学校",2,5,"全国文明校园，福建省教育厅直属公办首批全国重点中专，国家级示范校\n学校地址：福州市仓山区上渡路李厝山60号\n联系电话：0591-83573573；柯老师：18120889973，肖老师：18120889972，林老师：18120889971（微信同号）。\n学校网站：www.fjydxx.com；微信号：福建省邮电学校。\n收费标准：前三年免学费，后两年按合作高职校当年专科缴费标准执行（2026年学费13500元/生·学年）。"]
["福州软件职业技术学院",3,"福州软件职业技术学院（民办）","动漫设计 ","D02003","福建省邮电学校",2,5,"全国文明校园，福建省教育厅直属公办首批全国重点中专，国家级示范校\n学校地址：福州市仓山区上渡路李厝山60号\n联系电话：0591-83573573；柯老师：18120889973，肖老师：18120889972，林老师：18120889971（微信同号）。\n学校网站：www.fjydxx.com；微信号：福建省邮电学校。\n收费标准：前三年免学费，后两年按合作高职校当年专科缴费标准执行（2026年学费13500元/生·学年）。"]
[null,4,"福州软件职业技术学院（民办）","数字媒体技术","D02004","福建海洋职业技术学校",2,5,"前三年校址：福州市晋安区山北路75号,电话：0591—88358811  0591-88610121 联系人:朱老师13850169208,黄老师15960037708，吴老师15060041263，张老师18960790065 杨老师18250195663，邮箱695873309qq.com 学费标准：前三年免学费，后两年学费13500元/学年"]
[null,5,"福州软件职业技术学院（民办）","动漫制作技术","D02005","福建海洋职业技术学校",2,5,"前三年校址：福州市晋安区山北路75号,电话：0591—88358811  0591-88610121 联系人:朱老师13850169208,黄老师15960037708，吴老师15060041263，张老师18960790065 杨老师18250195663，邮箱695873309qq.com，网址：http://www.fjhyxx.com  学费标准：前三年免学费，后两年学费13500元/学年"]
[null,6,"福州软件职业技术学院（民办）","大数据与会计","D02006","福建经济学校",1,5,"首批全国文明校园，就读地址：福州市鼓楼区梅亭路17号，邮编：350003，电话：0591-83125333,83125888,83125889。联系人：李老师，黄老师   学费标准：前三年免学费，后两年学费12200元/学年"]
["福州软件职业技术学院",7,"福州软件职业技术学院（民办）","游戏艺术设计","D02007","福建商贸学校",1,5,"艺术类，无需面试。                                                                                公办国家重点中专学校 国家示范校                                                                         地址：福州市仓山区首山路33号  邮编：350007，学校网址：www.cnfjsm.com     \n联系人：黄老师 联系电话：0591-88036065，83417987，18960732786,18960819820。\n收费标准：前三年中职院校阶段免学费，后两年学费13500元/年。"]
["福州软件职业技术学院",8,"福州软件职业技术学院（民办）","大数据与会计","D02008","福建商贸学校",1,5,"公办国家重点中专学校 国家示范校                                                                       地址：福州市仓山区首山路33号，邮编：350007，学校网址：www.cnfjsm.com                     联系人：黄老师 联系电话：0591-83417987，88036065，18960732786，18960819820。\n收费标准：前三年中职院校阶段免学费，后两年高职院校阶段按照12200元/年学费标准收取。"]
[null,9,"福州软件职业技术学院（民办）","人工智能技术应用","D02009","福建省民政学校",3,"5","前三年联办校地址：福建省福州市连江县丹阳镇桂林村澳中121号（福建省民政学校）\n联系电话：0591-83531120、83537518、87723722                                                                                   学费标准：前三年中职阶段免学费，后两年按合作高职校当年专科缴费标准执行(2026年学费13500元/生·学年)。"]
[null,10,"福州软件职业技术学院（民办）","智能互联网络技术","D02010","福建省民政学校",3,"5","前三年联办校地址：福建省福州市连江县丹阳镇桂林村澳中121号（福建省民政学校）\n联系电话：0591-83531120、83537518、87723722                                                                                   学费标准：前三年中职阶段免学费，后两年按合作高职校当年专科缴费标准执行(2026年学费13500元/生·学年)。"]
[null,11,"福州软件职业技术学院（民办）","建筑室内设计","D02011","福建建筑学校",2,5,"学校地址：福州市仓山区洪山桥中店43号                                                                咨询电话：0591—83746460、28912388、18959111867、19206805460 。收费标准:前三年免学费，后二年按合作高职校当年专科缴费标准执行（2026年学费12500元/生.学年）。"]
[null,12,"福州软件职业技术学院（民办）","视觉传达设计 ","D02012","福建建筑学校",2,"5","学校地址：福州市仓山区洪山桥中店43号                                                                咨询电话：0591—83746460、28912388、18959111867、19206805460 。收费标准:前三年免学费，后二年按合作高职校当年专科缴费标准执行（2026年学费13500元/生.学年）。"]
["厦门南洋职业学院","二十一","厦门南洋职业学院（民办）",null,"D02100",null,{"$f":"SUM(G157:G160)","v":5},null,"简称厦门南洋学院，地处厦门市翔安文教区洪钟大道5068号，由福建省教育厅主管，是经福建省人民政府批准、教育部备案的全日制普通高等职业院校（综合类民办大专），入选数据中国“百校工程”。网址：https://zsjy.ny2000.com/ 联系人：黄老师 联系电话：15294505349"]
["厦门南洋职业学院",1,"厦门南洋职业学院（民办）","现代家政服务与管理","D02101","自办",1,5,"学费标准：前三年8900元/学年，后两年13800元/学年"]
[null,2,"厦门南洋职业学院（民办）","婴幼儿托育服务与管理","D02102","自办",1,5,"学费标准：前三年8900元/学年，后两年15800元/学年"]
[null,3,"厦门南洋职业学院（民办）","音乐表演","D02103","自办",1,5,"兼向艺术类\n学费标准：前三年8900元/学年，后两年18800元/学年"]
[null,4,"厦门南洋职业学院（民办）","无人机应用技术","D02104","福建理工学校",2,"5","学校地址：福州市仓山区洪山桥上店61号,学校网址：https：//www.fjlg.com,微信公众号：福建理工学校招生热线：0591-83740149， 0591-83766792，邱老师18396512182，刘老师13763832846，刘老师18750991023，郭老师17859501120；收费标准:前三年按作中职校当年缴费标准执行(免学费)。后两年学费18800元/年。"]
["厦门南洋职业学院","二十二","漳州科技职业学院（民办）",null,"D02200",null,{"$f":"SUM(G162:G164)","v":9},null,"是一所经福建省政府批准、国家教育部备案的全日制民办非营利性高等职业院校，坐落于漳州市漳浦县天福文化产业园。地址：福建省漳州市漳浦县天鹅山1号‌，邮编：363202  咨询电话:0596-3184666,网址：https://www.tfzzkj.cn/， 联系人：邹老师  联系电话： 15260612128"]
["厦门南洋职业学院",1,"漳州科技职业学院（民办）","网络营销与直播电商","D02201","福建省龙岩市农业学校",3,5,"地址:龙岩市新罗区南城横山路六号，邮编：364000，联系人:何苏宁老师，联系电话：15392379080。前三年中职阶段按联办学校收费标准执行，后两年按合作高职校当年专科缴费标准执行（学费13200元/生·学年）。"]
[null,2,"漳州科技职业学院（民办）","旅游管理","D02202","福建省龙岩市农业学校",3,5,"地址:龙岩市新罗区南城横山路六号，邮编：364000，联系人:何苏宁老师，联系电话：15392379080。\n前三年中职阶段按联办学校收费标准执行，后两年按合作高职校当年专科缴费标准执行（学费12200元/生·学年）。"]
[null,3,"漳州科技职业学院（民办）","茶艺与茶文化","D02203","福建省龙岩市农业学校",3,5,"前三年中职阶段按联办学校收费标准执行，后两年按合作高职校当年专科缴费标准执行（学费11200元/生·学年）。"]
["武夷山职业学院","二十三","武夷山职业学院（民办）",null,"D02300",null,{"$f":"SUM(G166:G169)","v":18},null,"地址：福建省武夷山市百花路360号（校本部）、建瓯市建州新区状元路23号（建州校区）。学生前三年于建州校区就读，后两年除烹饪工艺与营养专业外，其余专业均至校本部学习。\n邮编：354300\n联系人：陈老师、郑老师\n联系电话：0599-5017513、6919369\n网址：https://www.wyszyxy.com/"]
["武夷山职业学院",1,"武夷山职业学院（民办）","茶艺与茶文化","D02301","自办",5,5,"收费标准：前三年按5900元/年，后两年12800元/年标准收费。"]
["武夷山职业学院",2,"武夷山职业学院（民办）","高速铁路客运服务","D02302","自办",3,5,"身高：男生168－185cm，女生157－172cm 。身体健康，体型匀称，五官端正，无纹身，无疤痕。收费标准：前三年按5900元/年，后两年12800元/年标准收费。"]
[null,3,"武夷山职业学院（民办）","计算机应用技术","D02303","自办",5,5,"收费标准：前三年按5900元/年，后两年13800元/年标准收费。"]
[null,4,"武夷山职业学院（民办）","烹饪工艺与营养","D02304","自办",5,5,"收费标准：前三年按5900元/年，后两年12800元/年标准收费。"]
["泉州海洋职业学院","二十四","泉州海洋职业学院（民办）",null,"D02400",null,{"$f":"SUM(G171:G173)","v":5},null,"地址：福建省石狮市祥芝镇古浮二十区1号泉州海洋职业学院，邮编352700，联系人：吴老师13774883579（微信同号），0595-83858888  邮箱：359032198@qq.com"]
["泉州海洋职业学院",1,"泉州海洋职业学院（民办）","高速铁路客运服务","D02401","福建省民政学校",2,5,"前三年联办校地址：福建省福州市连江县丹阳镇桂林村澳中121号（福建省民政学校）\n联系电话：0591-83531120、83537518、87723722\n身高：男生170－185cm，女生160－172cm ， 体型匀称，五官端正，无纹身，无疤痕  \n学费标准：前三年免学费，后两年学费16900元/学年。"]
[null,2,"泉州海洋职业学院（民办）","航海技术","D02402","福建海洋职业技术学校",1,5,"前三年联办校校址：福州市晋安区山北路75号,电话：0591—88358811  0591-88610121 联系人:朱老师13850169208,黄老师15960037708，吴老师15060041263，张老师18960790065 杨老师18250195663，邮箱695873309qq.com学费标准：前三年免学费，后两年学费16900元/学年。"]
["泉州海洋职业学院",3,"泉州海洋职业学院（民办）","轮机工程技术","D02403","福建海洋职业技术学校",2,5,"前三年联办校校址：福州市晋安区山北路75号,电话：0591—88358811  0591-88610121 联系人:朱老师13850169208,黄老师15960037708，吴老师15060041263，张老师18960790065 杨老师18250195663，邮箱695873309qq.com学费标准：前三年免学费，后两年学费16900元/学年。"]

{"sheet":"三年中专全日制","index":2,"n_rows":390,"n_cols":10,"rows_kept":390,"merged":[[0,0,0,9],[1,0,1,9],[2,0,3,0],[2,1,3,1],[2,2,3,2],[2,3,3,3],[2,4,3,4],[2,5,2,7],[2,8,3,8],[2,9,3,9],[5,0,5,9],[174,0,174,9],[175,2,175,3],[203,8,216,8],[203,9,204,9],[217,0,217,9],[218,2,218,3],[353,9,354,9],[355,9,356,9]]}
["2026年面向三明市招生中等职业学校（含技工学校）招生计划"]
["（三）中等职业学校（含市属技工学校）招生计划数（全日制）"]
["序号","学校","\n专业名称","专业编码","学制","2026年招生计划数（人）",null,null,"收费标准\n(元/学年) ","备  注"]
[{"$nulls":5},"计划数","平台招生","职普融通班"]
["总计",{"$nulls":4},{"v":8092,"d":"8,092"},7792]
["▲市、县属中等职业学校"]
[null,null,"小计",null,null,{"v":5910,"d":"5,910"},{"v":5610,"d":"5,610"},300]
["市域内\n省属学校","福建三明林业学校",null,"C00100",null,840,840,0,null,"省属公办国家级重点中专学校，直属福建省林业局，系国家中职教育改革发展示范校，福建省\"双高计划\"立项建设学校，福建省\"三全育人\"典型学校、省示范性现代职业院校，省平安校园，省职业教育先进单位、省教育系统先进集体，全国林草系统先进单位，全国绿化模范单位。                                                \n地址：三明市三元区富文一路25号（三明一中旁）\n网址：http://www.fjsmlyxx.com\n招生咨询：0598-8337981、8328063"]
[1,"福建三明林业学校","林业生产技术","C00101","三年",38,38,null,"免学费","涉农专业，享受国家助学金6000元。"]
[2,"福建三明林业学校","园林技术","C00102","三年",41,41,null,"免学费","涉农专业，享受国家助学金6000元。"]
[3,"福建三明林业学校","园艺技术","C00103","三年",43,43,null,"免学费","涉农专业，享受国家助学金6000元。"]
[4,"福建三明林业学校","康养休闲旅游服务","C00104","三年",47,47,null,"免学费"]
[5,"福建三明林业学校","会计事务","C00105","三年",41,41,null,"免学费"]
[6,"福建三明林业学校","电子商务","C00106","三年",41,41,null,"免学费"]
[7,"福建三明林业学校","幼儿保育","C00107","三年",48,48,null,"免学费"]
[8,"福建三明林业学校","数控技术应用","C00108","三年",41,41,null,"免学费"]
[9,"福建三明林业学校","汽车运用与维修","C00109","三年",44,44,null,"免学费"]
[10,"福建三明林业学校","新能源汽车运用与维修","C00110","三年",84,84,null,"免学费"]
[11,"福建三明林业学校","计算机应用","C00111","三年",41,41,null,"免学费"]
[12,"福建三明林业学校","动漫与游戏制作","C00112","三年",43,43,null,"免学费"]
[13,"福建三明林业学校","市政工程施工","C00113","三年",44,44,null,"免学费"]
[14,"福建三明林业学校","无人机操控与维护","C00114","三年",84,84,null,"免学费"]
[15,"福建三明林业学校","计算机平面设计","C00115","三年",44,44,null,"免学费"]
[16,"福建三明林业学校","移动应用技术与服务","C00116","三年",41,41,null,"免学费"]
[17,"福建三明林业学校","工业机器人技术应用","C00117","三年",37,37,null,"免学费"]
[18,"福建三明林业学校","物联网技术应用","C00118","三年",38,38,null,"免学费"]
["一","三明医学科技职业学院（中专部）",null,"A00100",null,280,280,null,null,"三明市梅列区高岩路6号（邮编365000）\n校长：向红亮 \n招生联系：  8282672、8282357\n招生网址：http://zs.smykzy.cn"]
[1,"三明医学科技职业学院（中专部）","护理","A00101","三年",55,55,null,"免学费","大田教学点"]
[2,"三明医学科技职业学院（中专部）","护理","A00102","三年",120,120,null,"免学费","沙县教学点"]
[3,"三明医学科技职业学院（中专部）","护理","A00103","三年",45,45,null,"免学费","尤溪教学点"]
[4,"三明医学科技职业学院（中专部）","护理","A00104","三年",60,60,null,"免学费","宁化教学点"]
[6,"三明医学科技职业学院（中专部）","康复技术","A00105","三年",15,null,null,"免学费","与三明市特殊教育学校联办(定向视力残疾学生)，由学校自主招生。"]
["二","三明市农业学校",null,"A00200",null,{"v":1025,"d":"1,025"},{"v":1025,"d":"1,025"},null,null,"学校隶属福建省农业农村厅和三明市人民政府，是一所公办的国家级重点中等职业学校,全国文明校园，首批国家改革发展示范学校，全国教育系统先进集体，福建省文明校园，省教育系统先进集体，省职业教育先进单位。\n地址：福建省三明市沙县城关长泰路16号\n网址：http://www.fjsmnx.cn/\n招生咨询：0598-8853068  5822373 "]
[1,"三明市农业学校","园艺技术","A00201","三年",50,50,null,"免学费"]
[2,"三明市农业学校","建筑工程施工","A00202","三年",45,45,null,"免学费"]
[3,"三明市农业学校","高星级饭店运营与管理","A00203","三年",45,45,null,"免学费"]
[4,"三明市农业学校","茶叶生产与加工","A00204","三年",50,50,null,"免学费"]
[5,"三明市农业学校","畜禽生产技术","A00205","三年",50,50,null,"免学费"]
[6,"三明市农业学校","数控技术应用","A00206","三年",50,50,null,"免学费"]
[7,"三明市农业学校","汽车运用与维修","A00207","三年",50,50,null,"免学费"]
[8,"三明市农业学校","新能源汽车运用与维修","A00208","三年",50,50,null,"免学费"]
[9,"三明市农业学校","农机设备应用与维修","A00209","三年",40,40,null,"免学费"]
[10,"三明市农业学校","动漫与游戏制作","A00210","三年",50,50,null,"免学费"]
[11,"三明市农业学校","药剂","A00211","三年",100,100,null,"免学费"]
[12,"三明市农业学校","电子商务","A00212","三年",50,50,null,"免学费"]
[13,"三明市农业学校","中餐烹饪","A00213","三年",50,50,null,"免学费"]
[14,"三明市农业学校","幼儿保育","A00214","三年",50,50,null,"免学费"]
[15,"三明市农业学校","农产品贮藏与加工","A00215","三年",45,45,null,"免学费"]
[16,"三明市农业学校","计算机应用","A00216","三年",50,50,null,"免学费"]
[17,"三明市农业学校","电气设备运行与控制","A00217","三年",50,50,null,"免学费"]
[18,"三明市农业学校","安全技术与管理","A00218","三年",50,50,null,"免学费"]
[19,"三明市农业学校","智慧健康养老服务","A00219","三年",50,50,null,"免学费"]
[20,"三明市农业学校","智能网联汽车技术","A00220","三年",50,50,null,"免学费"]
["三","三明工贸学校",null,"A00300",null,900,600,300,null,"市属公办省级重点中专学校，省级文明学校，省中职教育改革发展示范学校，省示范性现代职业院校建设工程培育学校，省职业教育先进单位，省德育先进学校，省绿化红旗单位。\n地址：三明市宁化县城关中环北路138号\n招生咨询：6839293   18950912312"]
[1,"三明工贸学校","计算机应用","A00301","三年",110,50,60,"免学费","其中普职融通60人"]
[2,"三明工贸学校","计算机平面设计","A00302","三年",50,50,null,"免学费"]
[3,"三明工贸学校","建筑工程施工","A00303","三年",60,0,60,"免学费","其中普职融通60人"]
[4,"三明工贸学校","美发与形象设计","A00304","三年",100,100,null,"免学费"]
[5,"三明工贸学校","机电技术应用","A00305","三年",110,50,60,"免学费","其中普职融通60人"]
[6,"三明工贸学校","电子技术应用","A00306","三年",110,50,60,"免学费","其中普职融通60人"]
[7,"三明工贸学校","电梯安装与维修保养","A00307","三年",50,50,null,"免学费"]
[8,"三明工贸学校","会计事务","A00308","三年",60,0,60,"免学费","其中普职融通60人"]
[9,"三明工贸学校","城市轨道交通运营服务","A00309","三年",50,50,null,"免学费"]
[10,"三明工贸学校","物联网技术应用","A00310","三年",50,50,null,"免学费"]
[11,"三明工贸学校","艺术设计与制作","A00311","三年",50,50,null,"免学费"]
[12,"三明工贸学校","新能源汽车运用与维修","A00312","三年",50,50,null,"免学费"]
[13,"三明工贸学校","应急救援技术","A00313","三年",50,50,null,"免学费"]
["四","永安职业中专学校",null,"A00400",null,530,530,null,null,"国家中等职业教育改革发展示范学校，公办国家级重点中等职业学校，全国职业教育先进单位，省级技能型紧缺人才培养基地。\n地址：永安市燕西街道上吉山268号\n网址：http://www.fjyazz.com\n招生咨询：0598—3654222"]
[1,"永安职业中专学校","计算机应用","A00401","三年",50,50,null,"免学费"]
[2,"永安职业中专学校","数字媒体技术应用","A00402","三年",25,25,null,"免学费"]
[3,"永安职业中专学校","动漫与游戏制作","A00403","三年",25,25,null,"免学费"]
[4,"永安职业中专学校","电子技术应用","A00404","三年",50,50,null,"免学费"]
[5,"永安职业中专学校","艺术设计与制作","A00405","三年",50,50,null,"免学费"]
[6,"永安职业中专学校","建筑工程施工","A00406","三年",20,20,null,"免学费"]
[7,"永安职业中专学校","畜禽生产技术","A00407","三年",40,40,null,"免学费"]
[8,"永安职业中专学校","宠物养护与经营","A00408","三年",40,40,null,"免学费"]
[9,"永安职业中专学校","旅游服务与管理","A00409","三年",40,40,null,"免学费"]
[10,"永安职业中专学校","中餐烹饪","A00410","三年",40,40,null,"免学费"]
[11,"永安职业中专学校","会计事务","A00411","三年",20,20,null,"免学费"]
[12,"永安职业中专学校","电子商务","A00412","三年",30,30,null,"免学费"]
[13,"永安职业中专学校","无人机操控与维护","A00413","三年",50,50,null,"免学费"]
[14,"永安职业中专学校","营养与保健","A00414","三年",50,50,null,"免学费"]
["五","尤溪职业中专学校",null,"A00500",null,500,500,null,null,"国家级重点中等职业学校，省文明校园，省教育系统先进单位，国防教育特色学校，福建省首批职业教育改革发展示范校，福建省示范性现代职业院校，全国职业院校数字校园建设实验校。\n地址：福建省尤溪县城关镇北门路30号\n校长：范光邦\n微信公众号：yxzyzzxx\n网址：http://www.fjyxzz.cn/\n招生咨询：0598-6335345"]
[1,"尤溪职业中专学校","建筑工程施工","A00501","三年",50,50,null,"免学费"]
[2,"尤溪职业中专学校","电子商务","A00502","三年",50,50,null,"免学费"]
[3,"尤溪职业中专学校","计算机应用","A00503","三年",50,50,null,"免学费"]
[4,"尤溪职业中专学校","数控技术应用","A00504","三年",50,50,null,"免学费"]
[5,"尤溪职业中专学校","计算机平面设计","A00505","三年",50,50,null,"免学费"]
[6,"尤溪职业中专学校","纺织技术与服务","A00506","三年",50,50,null,"免学费"]
[7,"尤溪职业中专学校","机械加工技术","A00507","三年",50,50,null,"免学费"]
[8,"尤溪职业中专学校","会计事务","A00508","三年",50,50,null,"免学费"]
[9,"尤溪职业中专学校","无人机操控与维护","A00509","三年",50,50,null,"免学费"]
[10,"尤溪职业中专学校","休闲体育服务与管理","A00510","三年",50,50,null,"免学费"]
["六","大田职业中专学校",null,"A00600",null,780,780,null,null,"全国职业院校数字校园建设实验校，教育部国防教育示范校，福建省中等职业教育改革发展示范校，省示范性现代职业院校建设工程培育学校，省第十三届文明校园，省美育环境示范校。\n地址：大田县均溪镇福田路160号\n校长：杨生强    招生咨询：0598-7223634 "]
[1,"大田职业中专学校","园艺技术","A00601","三年",20,20,null,"免学费"]
[2,"大田职业中专学校","茶叶生产与加工","A00602","三年",20,20,null,"免学费"]
[3,"大田职业中专学校","中草药栽培","A00603","三年",20,20,null,"免学费"]
[4,"大田职业中专学校","畜禽生产技术","A00604","三年",20,20,null,"免学费"]
[5,"大田职业中专学校","机械制造技术","A00605","三年",40,40,null,"免学费"]
[6,"大田职业中专学校","数控技术应用","A00606","三年",40,40,null,"免学费"]
[7,"大田职业中专学校","电气设备运行与控制","A00607","三年",40,40,null,"免学费"]
[8,"大田职业中专学校","无人机操控与维护","A00608","三年",40,40,null,"免学费"]
[9,"大田职业中专学校","汽车运用与维修","A00609","三年",40,40,null,"免学费"]
[10,"大田职业中专学校","航空服务","A00610","三年",90,90,null,"免学费","需面试和政审。面试内容：身高女生160-173cm，男生170-183cm；视力双眼矫正视力不低于4.8（E字表），无色盲色弱者；形体匀称，无“x”形腿、“o”形腿；无纹身、无明显疤痕；无精神病史，无各类慢性传染性疾病。"]
[11,"大田职业中专学校","电子技术应用","A00611","三年",40,40,null,"免学费"]
[12,"大田职业中专学校","计算机应用","A00612","三年",40,40,null,"免学费"]
[13,"大田职业中专学校","计算机平面设计","A00613","三年",40,40,null,"免学费"]
[14,"大田职业中专学校","中医康复技术","A00614","三年",40,40,null,"免学费"]
[15,"大田职业中专学校","电子商务","A00615","三年",40,40,null,"免学费"]
[16,"大田职业中专学校","旅游服务与管理","A00616","三年",40,40,null,"免学费"]
[17,"大田职业中专学校","中餐烹饪","A00617","三年",90,90,null,"免学费"]
[18,"大田职业中专学校","工艺美术","A00618","三年",20,20,null,"免学费"]
[19,"大田职业中专学校","美容美体艺术","A00619","三年",20,20,null,"免学费"]
[20,"大田职业中专学校","智慧健康养老服务","A00620","三年",40,40,null,"免学费"]
["七","将乐职业中专学校  ",null,"A00700",null,345,345,null,null,"地址：将乐县龟山东路171号\n校长：汤远勇\n招生热线：13599364238张老师\n                   18759832968 邱老师"]
[1,"将乐职业中专学校  ","宠物养护与经营","A00701","三年",70,70,null,"免学费"]
[2,"将乐职业中专学校  ","幼儿保育","A00702","三年",30,30,null,"免学费"]
[3,"将乐职业中专学校  ","汽车运用与维修","A00703","三年",45,45,null,"免学费"]
[4,"将乐职业中专学校  ","计算机应用","A00704","三年",60,60,null,"免学费"]
[5,"将乐职业中专学校  ","电气设备运行与控制","A00705","三年",45,45,null,"免学费"]
[6,"将乐职业中专学校  ","休闲体育服务与管理","A00706","三年",50,50,null,"免学费"]
[7,"将乐职业中专学校  ","康养休闲旅游服务","A00707","三年",45,45,null,"免学费"]
["八","三明市金湖旅游职业中专学校",null,"A00800",null,440,440,null,null,"省首批中职达标学校和标准化职教中心，省级花园式单位，市文明学校，市德育先进学校。\n地址：泰宁县许洋路福山排7号（馨语超市后）\n校长：李水荣  招生咨询：18960599816；18067045776"]
[1,"三明市金湖旅游职业中专学校","旅游服务与管理","A00801","三年",50,50,null,"免学费"]
[2,"三明市金湖旅游职业中专学校","康养休闲旅游服务（中医推拿方向）","A00802","三年",30,30,null,"免学费"]
[3,"三明市金湖旅游职业中专学校","城市轨道交通运营服务","A00803","三年",40,40,null,"免学费"]
[4,"三明市金湖旅游职业中专学校","计算机应用","A00804","三年",45,45,null,"免学费"]
[5,"三明市金湖旅游职业中专学校","数字媒体技术应用","A00805","三年",40,40,null,"免学费"]
[6,"三明市金湖旅游职业中专学校","茶艺与茶营销","A00806","三年",20,20,null,"免学费"]
[7,"三明市金湖旅游职业中专学校","电子电器应用与维修","A00807","三年",45,45,null,"免学费"]
[8,"三明市金湖旅游职业中专学校","工业机器人技术应用","A00808","三年",30,30,null,"免学费"]
[9,"三明市金湖旅游职业中专学校","绘画","A00809","三年",40,40,null,"免学费"]
[10,"三明市金湖旅游职业中专学校","电子商务","A00810","三年",30,30,null,"免学费"]
[11,"三明市金湖旅游职业中专学校","中餐烹饪","A00811","三年",40,40,null,"免学费"]
[12,"三明市金湖旅游职业中专学校","无人机操控与维护","A00812","三年",30,30,null,"免学费"]
["九","建宁县职业中学",null,"A00900",null,240,240,null,null,"福建省“劳动技术教育先进单位”，福建省“军民共建先进单位”，省级“文明学校”，建宁县“平安校园”等。\n地址：建宁县溪口镇溪口村东坑59号\n校长：黄 彪\n招生咨询：0598-3980220"]
[1,"建宁县职业中学","计算机应用","A00901","三年",25,25,null,"免学费"]
[2,"建宁县职业中学","园林技术","A00902","三年",40,40,null,"免学费"]
[3,"建宁县职业中学","旅游服务与管理","A00903","三年",25,25,null,"免学费"]
[4,"建宁县职业中学","工艺美术","A00904","三年",20,20,null,"免学费"]
[5,"建宁县职业中学","休闲体育服务与管理","A00905","三年",20,20,null,"免学费"]
[6,"建宁县职业中学","数字媒体技术应用","A00906","三年",25,25,null,"免学费"]
[7,"建宁县职业中学","高星级饭店运营与管理","A00907","三年",20,20,null,"免学费"]
[8,"建宁县职业中学","无人机操控与维护","A00908","三年\n",40,40,null,"免学费"]
[9,"建宁县职业中学","数字非遗设计与制作","A00909","三年",25,25,null,"免学费"]
["十","明溪县职业中学",null,"A01000",null,260,260,null,null,"县属公办校\n地址：明溪县雪峰镇中山路1116号\n校长：蔡庆元\n招生电话：董老师13313816018  \n陈老师13559880867"]
[1,"明溪县职业中学","机械加工技术","A01001","三年",40,40,null,"免学费"]
[2,"明溪县职业中学","计算机应用","A01002","三年",60,60,null,"免学费"]
[3,"明溪县职业中学","无人机操控与维护","A01003","三年",40,40,null,"免学费"]
[4,"明溪县职业中学","跨境电子商务","A01004","三年",30,30,null,"免学费"]
[5,"明溪县职业中学","生物制药工艺","A01005","三年",30,30,null,"免学费"]
[6,"明溪县职业中学","工业机器人技术应用","A01006","三年",40,40,null,"免学费"]
[7,"明溪县职业中学","幼儿保育","A01007","三年",20,20,null,"免学费"]
["十一","清流县高级职业中学",null,"A01100",null,290,290,null,null,"县属公办校，市文明学校，市德育工作先进校，市绿化先进单位，县平安校园。\n地址:清流县龙津镇常春街89号\n校长:罗维雄\n招生咨询:0598-5324931"]
[1,"清流县高级职业中学","计算机应用","A01101","三年",30,30,null,"免学费"]
[2,"清流县高级职业中学","运动训练","A01102","三年",30,30,null,"免学费"]
[3,"清流县高级职业中学","化学工艺","A01103","三年",30,30,null,"免学费"]
[4,"清流县高级职业中学","分析检验技术","A01104","三年",30,30,null,"免学费"]
[5,"清流县高级职业中学","康养休闲旅游服务","A01105","三年",30,30,null,"免学费"]
[6,"清流县高级职业中学","选矿技术","A01106","三年",20,20,null,"免学费"]
[7,"清流县高级职业中学","化工仪表及自动化","A01107","三年",30,30,null,"免学费"]
[8,"清流县高级职业中学","应急救援技术","A01108","三年",30,30,null,"免学费"]
[9,"清流县高级职业中学","精细化工技术","A01109","三年",30,30,null,"免学费"]
[10,"清流县高级职业中学","无人机操控与维护","A01110","三年",30,30,null,"免学费"]
["十二","三明市思凯兰航空职业技术学校",null,"A01200",null,320,320,null,null,"经三明市教育局批准的民办中职学校。地址：福建省三明市沙县区凤岗长兴北路480号  电话联系：洪老师：17880328087"]
[1,"三明市思凯兰航空职业技术学校","航空服务","A01201","三年",50,50,null,4600]
[2,"三明市思凯兰航空职业技术学校","飞机设备维修","A01202","三年",30,30,null,4600]
[3,"三明市思凯兰航空职业技术学校","新能源汽车运用与维修","A01203","三年",70,70,null,4600]
[4,"三明市思凯兰航空职业技术学校","无人机操控与维护","A01204","三年",40,40,null,4600]
[5,"三明市思凯兰航空职业技术学校","电子商务","A01205","三年",25,25,null,4600]
[6,"三明市思凯兰航空职业技术学校","休闲体育服务与管理","A01206","三年",20,20,null,4600]
[7,"三明市思凯兰航空职业技术学校","数字媒体技术应用","A01207","三年",20,20,null,4600]
[8,"三明市思凯兰航空职业技术学校","艺术设计与制作","A01208","三年",25,25,null,4600]
[9,"三明市思凯兰航空职业技术学校","城市轨道交通运营服务","A01209","三年",40,40,null,4600]
["▲市、县属技工学校"]
[null,null,"小计",null,null,{"$f":"F177+F190+F203","v":936},{"$f":"G177+G190+G203","v":936}]
["一","三明技师学院",null,"B00800",null,450,450,null,null,"学校隶属三明市人力资源和社会保障局，是一所集学历教育、培训鉴定、就业服务于一体的公办办学实体，三明市文明校园。\n地址：永安市燕北街道大洲后29号。\n校长：徐思明     招生热线：0598-3851789"]
[1,"三明技师学院","电气自动化设备安装与维修","B00801",3,35,35,null,"免学费","升学方向（中考400分以上）"]
[2,"三明技师学院","数控加工（数控车工）","B00802",3,35,35,null,"免学费","升学方向（中考400分以上）"]
[3,"三明技师学院","汽车维修","B00803",6,30,30,null,"免学费","预备技师（中考300分以上）"]
[4,"三明技师学院","工业机器人应用与维护","B00804",6,30,30,null,"免学费","预备技师（中考300分以上）"]
[5,"三明技师学院","新能源汽车检测与维修","B00805",5,40,40,null,"免学费","高级工（中考260分以上）"]
[6,"三明技师学院","智能网联汽车技术应用","B00806",5,40,40,null,"免学费","高级工（中考260分以上）"]
[7,"三明技师学院","工业机器人应用与维护","B00807",5,40,40,null,"免学费","高级工（中考260分以上）"]
[8,"三明技师学院","无人机应用技术","B00808",5,40,40,null,"免学费","高级工（中考260分以上）"]
[9,"三明技师学院","机电一体化","B00809",5,40,40,null,"免学费","高级工（中考260分以上）"]
[10,"三明技师学院","计算机动画制作","B00810",5,40,40,null,"免学费","高级工（中考260分以上）"]
[11,"三明技师学院","人工智能技术应用","B00811",5,40,40,null,"免学费","高级工（中考260分以上）"]
[12,"三明技师学院","美容美发与造型（化妆）","B00812",5,40,40,null,"免学费","高级工（中考260分以上）"]
["二","福建三明中艺技术学校",null,"B01100",null,466,466,null,"收费标准（元/学期）","三明市人力资源和社会保障局批准的民办中职技校\n地址：三明市沙县区职教园金桥南路1-1号\n招办电话：0598-8869986，18259737768"]
[1,"福建三明中艺技术学校","护理","B01101","三年",50,50,null,3300]
[2,"福建三明中艺技术学校","药物制剂","B01102","三年",35,35,null,3300]
[3,"福建三明中艺技术学校","口腔义齿制造","B01103","三年",35,35,null,3300]
[4,"福建三明中艺技术学校","新能源汽车检测与维修","B01104","三年",65,65,null,3300]
[5,"福建三明中艺技术学校","无人机应用技术","B01105","三年",45,45,null,3300]
[6,"福建三明中艺技术学校","应急救援技术","B01106","三年",30,30,null,3300]
[7,"福建三明中艺技术学校","休闲体育服务","B01107","三年",30,30,null,3300]
[8,"福建三明中艺技术学校","烹饪（中式烹调）","B01108","三年",40,40,null,3300]
[9,"福建三明中艺技术学校","多媒体制作（人工智能AI）技术","B01109","三年",30,30,null,3300]
[10,"福建三明中艺技术学校","计算机应用与维修","B01110","三年",30,30,null,3300]
[11,"福建三明中艺技术学校","宠物医疗与护理","B01111","三年",36,36,null,3300]
[12,"福建三明中艺技术学校","电气自动化设备安装与维修","B01112","三年",40,40,null,3300]
["（三）","福建省第二高级技工学校",null,"B02000",null,20,20,null,"按政策免学费后，收费项目","隶属福建省人力资源和社会保障厅公办中职技工学校。\n地址：福州市仓山区首山村首山1号，邮编：350007，邮箱：fjldjx012@126.com,联系人：董老师、吴老师、高老师\n招办电话：0591-83563041或83591063"]
[1,"福建省第二高级技工学校","数控加工（数控车工）","B02001","三年",2,2,null,"1、住宿费：570元/670元/1300元/学年；                               2、代收费：教材500元/学年；                               3、考试类收费130元/254元/次","1.面向三明招生14个专业中，除烹饪（中式烹饪，中西式面点）、休闲体育服务、美容美发与造型(美发)4个专业外，其他专业3年中级工+2年高级，合计5年，以连读教学计划安排教学。"]
[2,"福建省第二高级技工学校","电气自动化设备安装与维修","B02002","三年",1,1]
[3,"福建省第二高级技工学校","计算机动画制作","B02003","三年",1,1]
[4,"福建省第二高级技工学校","物联网应用技术","B02004","三年",1,1]
[5,"福建省第二高级技工学校","汽车维修","B02005","三年",1,1]
[6,"福建省第二高级技工学校","无人机应用技术","B02006","三年",2,2]
[7,"福建省第二高级技工学校","烹饪（中式烹调）","B02007","三年",2,2]
[8,"福建省第二高级技工学校","烹饪（中西式面点）","B02008","三年",1,1]
[9,"福建省第二高级技工学校","美容美发与造型（美发）","B02009","三年",2,2]
[10,"福建省第二高级技工学校","美容美发与造型（美容）","B02010","三年",2,2,null,null,"2.本专业限招女生"]
[11,"福建省第二高级技工学校","休闲体育服务","B02011","三年",2,2]
[12,"福建省第二高级技工学校","电子商务","B02012","三年",1,1]
[13,"福建省第二高级技工学校","大数据与会计","B02013","三年",1,1]
[14,"福建省第二高级技工学校","平面设计","B02014","三年",1,1]
["▲省属中等职业中专学校"]
[null,null,"小计",null,null,{"v":1246,"d":"1,246"},{"v":1246,"d":"1,246"},0]
["二","福建工业学校",null,"C00200",null,53,53,null,null,"首批国家中等职业教育改革发展示范学校，全国职业教育先进单位，福建省示范性现代职业院校，公立国家级重点中职学校，国家技能型紧缺人才培养培训院校，黄炎培职业教育奖优秀学校，5A级平安校园。  地址:福州市仓山区洪山桥上店13号\n网址：www.fjgx.cn/      微信公众号：福建工业学校      邮编:350002    联系电话:0591-83768408、63187508，83771012\n联系人：郭老师 13960776591，陈老师 18649708883，杨老师 13600805016，林老师 13055421098\n"]
[1,"福建工业学校","数控技术应用","C00201","三年",4,4,null,"免学费"]
[2,"福建工业学校","机械制造技术","C00202","三年",3,3,null,"免学费"]
[3,"福建工业学校","工业机器人技术应用","C00203","三年",4,4,null,"免学费"]
[4,"福建工业学校","汽车运用与维修","C00204","三年",8,8,null,"免学费"]
[5,"福建工业学校","新能源汽车制造与检测","C00205","三年",5,5,null,"免学费"]
[6,"福建工业学校","新能源汽车运用与维修","C00206","三年",5,5,null,"免学费"]
[7,"福建工业学校","计算机平面设计","C00207","三年",4,4,null,"免学费"]
[8,"福建工业学校","计算机应用","C00208","三年",5,5,null,"免学费"]
[9,"福建工业学校","城市轨道交通运营服务","C00209","三年",4,4,null,"免学费"]
[10,"福建工业学校","城市轨道交通车辆运用与检修","C00210","三年",3,3,null,"免学费"]
[11,"福建工业学校","机电技术应用","C00211","三年",3,3,null,"免学费"]
[12,"福建工业学校","电气设备运行与控制","C00212","三年",3,3,null,"免学费"]
[13,"福建工业学校","电子商务","C00213","三年",2,2,null,"免学费"]
["三","福建理工学校",null,"C00300",null,78,78,null,null,"国家中等职业教育改革发展示范学校，福建省示范性现代职业院校，公立国家级重点中职学校，国家技能型紧缺人才培养培训院校，黄炎培职业教育奖优秀学校，5A级平安校园。  地址:福州仓山区建新镇上店路61号     网址：www.fjlg.com         微信公众号：福建理工学校      邮编:350007                                                  联系电话: 0591-83740149、83766792、邱老师18396512182，刘老师13763832846，刘老师18750991023，郭老师17859501120 "]
[1,"福建理工学校","机械制造技术","C00301","三年",6,6,null,"免学费"]
[2,"福建理工学校","工业机器人技术应用","C00302","三年",5,5,null,"免学费"]
[3,"福建理工学校","机电技术应用","C00303","三年",9,9,null,"免学费"]
[4,"福建理工学校","数控技术应用","C00304","三年",5,5,null,"免学费"]
[5,"福建理工学校","汽车运用与维修","C00305","三年",7,7,null,"免学费"]
[6,"福建理工学校","智能网联汽车技术","C00306","三年",3,3,null,"免学费"]
[7,"福建理工学校","新能源汽车运用与维修","C00307","三年",7,7,null,"免学费"]
[8,"福建理工学校","汽车美容与装潢","C00308","三年",3,3,null,"免学费"]
[9,"福建理工学校","电子商务","C00309","三年",5,5,null,"免学费"]
[10,"福建理工学校","会计事务","C00310","三年",4,4,null,"免学费"]
[11,"福建理工学校","物流服务与管理","C00311","三年",2,2,null,"免学费"]
[12,"福建理工学校","工艺美术","C00312","三年",2,2,null,"免学费"]
[13,"福建理工学校","建筑工程施工","C00313","三年",2,2,null,"免学费"]
[14,"福建理工学校","航空摄影测量","C00314","三年",2,2,null,"免学费"]
[15,"福建理工学校","虚拟现实技术与应用","C00315","三年",2,2,null,"免学费"]
[16,"福建理工学校","数字媒体技术应用","C00316","三年",5,5,null,"免学费"]
[17,"福建理工学校","计算机平面设计","C00317","三年",4,4,null,"免学费"]
[18,"福建理工学校","计算机网络技术","C00318","三年",4,4,null,"免学费"]
[19,"福建理工学校","人工智能技术应用","C00319","三年",1,1,null,"免学费"]
["四","福建建筑学校",null,"C00400",null,23,23,null,null,"福建建筑学校（原福建建材工业学校）创建于 1979 年，是直属福建省教育厅的‌公办国家级重点中等职业学校‌，首批国家级示范校。                                                  地址：福州市仓山区建新镇洪山桥中店43号，邮编：350002                                                                               学校网站：https://www.fjjzxx.cn                                                                招生热线：0591-83746460、28912388                                                      郑老师18959111867,陈老师19206805460,夏老师13774540007,                 许老师13645008268,张老师13506990901"]
[1,"福建建筑学校","建筑工程施工","C00401","三年",2,2,null,"免学费"]
[2,"福建建筑学校","建筑工程造价","C00402","三年",2,2,null,"免学费"]
[3,"福建建筑学校","建筑水电设备安装与运维","C00403","三年",1,1,null,"免学费"]
[4,"福建建筑学校","建筑材料检测技术","C00404","三年",2,2,null,"免学费"]
[5,"福建建筑学校","新型建筑材料生产技术","C00405","三年",2,2,null,"免学费"]
[6,"福建建筑学校","智能设备运行与维护","C00406","三年",2,2,null,"免学费"]
[7,"福建建筑学校","建筑装饰技术","C00407","三年",1,1,null,"免学费"]
[8,"福建建筑学校","计算机平面设计","C00408","三年",1,1,null,"免学费"]
[9,"福建建筑学校","动漫与游戏制作","C00409","三年",2,2,null,"免学费"]
[10,"福建建筑学校","会计事务","C00410","三年",5,5,null,"免学费"]
[11,"福建建筑学校","电子商务","C00411","三年",1,1,null,"免学费"]
[12,"福建建筑学校","航空摄影测量","C00412","三年",1,1,null,"免学费"]
[13,"福建建筑学校","人工智能技术应用","C00413","三年",1,1,null,"免学费"]
["五","福建省邮电学校",null,"C00500",null,15,15,null,null,"全国文明校园，福建省教育厅直属公办首批全国重点中专，国家级示范校\n学校地址：福州市仓山区上渡路李厝山60号\n招生电话：0591-83573573；\n联系电话：柯老师：18120889973；肖老师：18120889972；林老师：18120889971（微信同号）。\n学校网站：www.fjydxx.com。\n微信号：福建省邮电学校。"]
[1,"福建省邮电学校","现代通信技术应用","C00501","三年",3,3,null,"免学费"]
[2,"福建省邮电学校","物联网技术应用","C00502","三年",1,1,null,"免学费"]
[3,"福建省邮电学校","通信运营服务","C00503","三年",1,1,null,"免学费"]
[4,"福建省邮电学校","移动应用技术与服务","C00504","三年",1,1,null,"免学费"]
[5,"福建省邮电学校","计算机网络技术","C00505","三年",1,1,null,"免学费"]
[6,"福建省邮电学校","网络信息安全","C00506","三年",1,1,null,"免学费"]
[7,"福建省邮电学校","计算机平面设计","C00507","三年",1,1,null,"免学费"]
[8,"福建省邮电学校","动漫与游戏制作","C00508","三年",1,1,null,"免学费"]
[9,"福建省邮电学校","艺术设计与制作","C00509","三年",1,1,null,"免学费"]
[10,"福建省邮电学校","会计事务","C00510","三年",1,1,null,"免学费"]
[11,"福建省邮电学校","物流服务与管理","C00511","三年",1,1,null,"免学费"]
[12,"福建省邮电学校","金融事务","C00512","三年",1,1,null,"免学费"]
[13,"福建省邮电学校","电子商务","C00513","三年",1,1,null,"免学费"]
["六","福建经济学校 ",null,"C00600",null,21,21,null,null,"学校坐落于历史文化名城福州，是一所以财经商贸类专业与工科艺术类专业兼顾发展的国家级中等职业教育改革发展示范校、福建省示范性现代职业院校，获批为福建省高水平职业院校和专业建设计划A类立项建设单位。学校原名福建供销学校，隶属于福建省供销合作社联合社，1965年在建阳莒口建校，1993年被评为省部级重点中专，1995年更名为福建经济学校，2000年被评为国家级重点中专，2004年和2022年被评为全国五四红旗团委，2015年被评为全国文明单位，2017年和2021年被评为全国文明校园，2023年获评第八届黄炎培职业教育奖“优秀学校奖”。招生电话：0591-83125888、83125889、83125333   网址：http://www.cnfes.com/"]
[1,"福建经济学校 ","会计事务","C00601","三年",2,2,null,"免学费"]
[2,"福建经济学校 ","市场营销","C00602","三年",3,3,null,"免学费"]
[3,"福建经济学校 ","服务机器人装配与维护","C00603","三年",2,2,null,"免学费"]
[4,"福建经济学校 ","计算机与数码设备维修","C00604","三年",2,2,null,"免学费"]
[5,"福建经济学校 ","无人机操控与维护","C00605","三年",2,2,null,"免学费"]
[6,"福建经济学校 ","计算机网络技术","C00606","三年",2,2,null,"免学费"]
[7,"福建经济学校 ","网络信息安全","C00607","三年",2,2,null,"免学费"]
[8,"福建经济学校 ","物联网技术应用","C00608","三年",2,2,null,"免学费"]
[9,"福建经济学校 ","新能源汽车运用与维修","C00609","三年",2,2,null,"免学费"]
[10,"福建经济学校 ","园林绿化","C00610","三年",2,2,null,"免学费"]
["七","福建商贸学校",null,"C00700",null,30,30,null,null,"福建商贸学校是一所集中职教育、五年制大专和成人高等教育及培训与鉴定为一体的公办国家级重点中专学校、国家级示范学校和全国供销总社示范学校。\n网址：https://www.cnfjsm.com/                             联系人：黄老师                                                         联系电话：0591-83417987，88036065。18960732786，18960819820。"]
[1,"福建商贸学校","会计事务","C00701","三年",1,1,null,"免学费"]
[2,"福建商贸学校","金融事务","C00702","三年",1,1,null,"免学费"]
[3,"福建商贸学校","市场营销","C00703","三年",2,2,null,"免学费"]
[4,"福建商贸学校","电子商务","C00704","三年",2,2,null,"免学费"]
[5,"福建商贸学校","美发与形象设计","C00705","三年",1,1,null,"免学费"]
[6,"福建商贸学校","美容美体艺术","C00706","三年",3,3,null,"免学费"]
[7,"福建商贸学校","工艺美术","C00707","三年",2,2,null,"免学费"]
[8,"福建商贸学校","首饰设计与制作","C00708","三年",1,1,null,"免学费"]
[9,"福建商贸学校","计算机应用","C00709","三年",1,1,null,"免学费"]
[10,"福建商贸学校","计算机网络技术","C00710","三年",1,1,null,"免学费"]
[11,"福建商贸学校","电子技术应用","C00711","三年",2,2,null,"免学费"]
[12,"福建商贸学校","高星级饭店运营与管理","C00712","三年",1,1,null,"免学费"]
[13,"福建商贸学校","旅游服务与管理","C00713","三年",1,1,null,"免学费"]
[14,"福建商贸学校","商务英语","C00714","三年",1,1,null,"免学费"]
[15,"福建商贸学校","幼儿保育","C00715","三年",2,2,null,"免学费"]
[16,"福建商贸学校","动漫与游戏设计","C00716","三年",2,2,null,"免学费"]
[17,"福建商贸学校","艺术设计与制作","C00717","三年",2,2,null,"免学费"]
[18,"福建商贸学校","大数据技术应用","C00718","三年",2,2,null,"免学费"]
[19,"福建商贸学校","无人机操控与维护","C00719","三年",2,2,null,"免学费"]
["八","福建工贸学校",null,"C00800",null,30,30,null,"免学费","福建工贸学校（原福建省粮食学校、福建省粮食干部学校）创办于1954年，是一所集中高职教育和行业培训于一体的多层次公立全日制国家级重点职业院校，系第一批公立国家级重点中专、第一批全国职业指导“先进学校”、 教育部国防教育特色学校、省级技能型紧缺人才培养基地、福建省示范性现代职业院校、福建省文明校园、福建省平安校园，入围全国学生管理\"50强\"。地址：福州市鼓楼区洪山桥洪甘路319号\n网址：http://www.fjgmxx.cn"]
[1,"福建工贸学校","食品加工工艺","C00801","三年",3,3,null,"免学费"]
[2,"福建工贸学校","食品安全与检测技术","C00802","三年",3,3,null,"免学费"]
[3,"福建工贸学校","药品食品检验","C00803","三年",3,3,null,"免学费"]
[4,"福建工贸学校","移动应用技术与服务","C00804","三年",3,3,null,"免学费"]
[5,"福建工贸学校","计算机平面设计","C00805","三年",3,3,null,"免学费"]
[6,"福建工贸学校","动漫与游戏制作","C00806","三年",3,3,null,"免学费"]
[7,"福建工贸学校","电子商务","C00807","三年",3,3,null,"免学费"]
[8,"福建工贸学校","西餐烹饪","C00808","三年",3,3,null,"免学费"]
[9,"福建工贸学校","美发与形象设计","C00809","三年",3,3,null,"免学费"]
[10,"福建工贸学校","美容美体艺术","C00810","三年",3,3,null,"免学费"]
["九","福建经贸学校",null,"C00900",null,10,10,null,null,"学校创建于1979年，位于福建省泉州市，前身“福建省粮油技工学校”，2001年正式更名为“福建经贸学校”。该校是公办国家级重点中专，泉州市唯一一所省属中职学校。学校地址：泉州市洛江区河市镇溪头村99号。招生热线：0595-22792785.联系人：汪老师13859711540网址：http://www.fjjmxx.org"]
[1,"福建经贸学校","电子商务","C00901","三年",1,1,null,"免学费"]
[2,"福建经贸学校","电子信息技术","C00902","三年",1,1,null,"免学费"]
[3,"福建经贸学校","工业机器人技术应用","C00903","三年",1,1,null,"免学费"]
[4,"福建经贸学校","计算机平面设计","C00904","三年",1,1,null,"免学费"]
[5,"福建经贸学校","计算机应用","C00905","三年",1,1,null,"免学费"]
[6,"福建经贸学校","汽车运用与维修","C00906","三年",1,1,null,"免学费"]
[7,"福建经贸学校","食品加工工艺","C00907","三年",1,1,null,"免学费"]
[8,"福建经贸学校","数控技术应用","C00908","三年",1,1,null,"免学费"]
[9,"福建经贸学校","新能源汽车运用与维修","C00909","三年",1,1,null,"免学费"]
[10,"福建经贸学校","音乐表演","C00910","三年",1,1,null,"免学费"]
["十","福建生态工程职业技术学校",null,"C01000",null,22,22,null,null,"国家级重点中等职业学校、福建省规范化中等职业学校、福建省平安校园、福建省直机关文明单位。\n学校地址：福州市仓山区上渡尤溪洲191号\n招生热线：0591-83590477、0591-83266892\n联系人：丁老师19204907187、林老师19055498509\n学校网址：http://www.fjstgc.cn/\n微信公众号：福建生态工程职业技术学校"]
[1,"福建生态工程职业技术学校","园林技术","C01001","三年",4,4,null,"免学费"]
[2,"福建生态工程职业技术学校","园艺技术","C01002","三年",3,3,null,"免学费"]
[3,"福建生态工程职业技术学校","康养休闲旅游服务","C01003","三年",3,3,null,"免学费"]
[4,"福建生态工程职业技术学校","建筑工程施工","C01004","三年",3,3,null,"免学费"]
[5,"福建生态工程职业技术学校","工艺美术","C01005","三年",2,2,null,"免学费"]
[6,"福建生态工程职业技术学校","艺术设计与制作","C01006","三年",2,2,null,"免学费"]
[7,"福建生态工程职业技术学校","数字媒体技术应用","C01007","三年",2,2,null,"免学费"]
[8,"福建生态工程职业技术学校","计算机网络技术","C01008","三年",3,3,null,"免学费"]
["十一","福建省民政学校",null,"C01100",null,23,23,null,null,"学校创办于1985年，隶属于福建省民政厅，是一所经省政府批准的公立全日制省级重点中职学校。该校位于福州市连江县丹阳镇，自2012年起连续三届被评为省直文明单位；2021年获第十一届全国职业院校民政职业技能大赛团体赛三等奖；2021年获“华煦杯”福建省养老护理职业技能大赛“突出贡献单位”，养老护理送教上门培训项目获“终身学习品牌项目”；2022年获福建省直属机关妇女工作委员会“巾帼文明岗位”；2023年获养老护理职业技能大赛泉州赛区选拔赛“突出贡献单位”。网址：http://fjmzxx.com/"]
[1,"福建省民政学校","航空服务","C01101","三年",2,2,null,"免学费"]
[2,"福建省民政学校","铁道运输服务","C01102","三年",2,2,null,"免学费"]
[3,"福建省民政学校","计算机网络技术","C01103","三年",2,2,null,"免学费"]
[4,"福建省民政学校","中餐烹饪","C01104","三年",2,2,null,"免学费"]
[5,"福建省民政学校","老年人服务与管理","C01105","三年",2,2,null,"免学费"]
[6,"福建省民政学校","社会福利事业管理","C01106","三年",3,3,null,"免学费"]
[7,"福建省民政学校","康复辅助器具技术及应用","C01107","三年",2,2,null,"免学费"]
[8,"福建省民政学校","殡葬服务与管理","C01108","三年",8,8,null,"免学费"]
["十二","福建海洋职业技术学校",null,"C01200",null,38,38,null,null,"全国现代水产行业产教融合共同体副理事长单位\n全国绿色智能航运行业产教融合共同体常务理事单位\n省级规范化中等职业学校\n首批省级示范性虚拟仿真实训基地     校址：福州市晋安区山北路75号     电话：0591—88358811    0591—88610121 \n联系人：朱老师：13850169208，吴老师：15060041263，杨老师 18250195663，分数最低控制300分及以上          "]
[1,"福建海洋职业技术学校","海水养殖","C01201","三年",2,2,null,"免学费","涉农专业，最低录取线300"]
[2,"福建海洋职业技术学校","休闲渔业","C01202","三年",2,2,null,"免学费"]
[3,"福建海洋职业技术学校","船舶驾驶","C01203","三年",3,3,null,"免学费","入学时年满15周岁，需体检。最低录取线 300"]
[4,"福建海洋职业技术学校","轮机维护与管理","C01204","三年",6,6,null,"免学费"]
[5,"福建海洋职业技术学校","水产饲料生产与经营","C01205","三年",2,2,null,"免学费"]
[6,"福建海洋职业技术学校","农产品贮藏与加工","C01206","三年",2,2,null,"免学费"]
[7,"福建海洋职业技术学校","食品安全与检测技术","C01207","三年",2,2,null,"免学费"]
[8,"福建海洋职业技术学校","中餐烹饪","C01208","三年",1,1,null,"免学费"]
[9,"福建海洋职业技术学校","社会文化艺术","C01209","三年",1,1,null,"免学费"]
[10,"福建海洋职业技术学校","会计事务","C01210","三年",2,2,null,"免学费"]
[11,"福建海洋职业技术学校","电子商务","C01211","三年",1,1,null,"免学费"]
[12,"福建海洋职业技术学校","计算机平面设计","C01212","三年",3,3,null,"免学费"]
[13,"福建海洋职业技术学校","城市轨道交通运营服务","C01213","三年",3,3,null,"免学费"]
[14,"福建海洋职业技术学校","高星级饭店运营与管理","C01214","三年",1,1,null,"免学费"]
[15,"福建海洋职业技术学校","建筑工程施工","C01215","三年",1,1,null,"免学费"]
[16,"福建海洋职业技术学校","服务机器人装配与维护","C01216","三年",3,3,null,"免学费"]
[17,"福建海洋职业技术学校","邮轮乘务","C01217","三年",3,3,null,"免学费"]
["十三","福建铁路机电学校",null,"C01300",null,30,30,null,null,"地址：福州市晋安区桂山路109号                                                                   联系电话：0591-88619052/18859168896\n联系人：许老师"]
[1,"福建铁路机电学校","机电技术应用","C01301","三年",5,5,null,"免学费"]
[2,"福建铁路机电学校","铁道工程施工与维护","C01302","三年",3,3,null,"免学费"]
[3,"福建铁路机电学校","电气化铁道供电","C01303","三年",2,2,null,"免学费"]
[4,"福建铁路机电学校","铁道运输服务","C01304","三年",3,3,null,"免学费"]
[5,"福建铁路机电学校","城市轨道交通车辆运用与检修","C01305","三年",3,3,null,"免学费"]
[6,"福建铁路机电学校","城市轨道交通运营服务","C01306","三年",5,5,null,"免学费"]
[7,"福建铁路机电学校","电子信息技术","C01307","三年",3,3,null,"免学费"]
[8,"福建铁路机电学校","现代通信技术应用","C01308","三年",3,3,null,"免学费"]
[9,"福建铁路机电学校","国际货运代理","C01309","三年",3,3,null,"免学费"]
["十四","福建航运学校",null,"C01400",null,18,18,null,null,"校址：福州市马尾区新民村35号 \n招生电话：0591—83682392    \n联系人：郭老师 13960835859，\n       吴老师：13706963836，\n       韩老师：13685041053"]
[1,"福建航运学校","船舶驾驶","C01401","三年",5,5,null,"免学费","应符合国家海事局规定的船员体检标准（GB30035-2021)，身高在1.60米及以上，双眼裸视力均能达0.5（4.7）以上；或双眼裸视力均能达到0.1（4.0）以上，且矫正视力均能达到0.8（4.9）及以上，无色盲色弱等。"]
[2,"福建航运学校","轮机维护与管理","C01402","三年",4,4,null,"免学费","应符合国家海事局规定的船员体检标准（GB30035-2021)，身高在1.55米及以上，双眼裸视力均能达到0.4（4.6）及以上；或双眼裸视力均能达0.1（4.0）及以上，且矫正视力均能达到0.4（4.6）及以上，无色盲色弱等。"]
[3,"福建航运学校","邮轮乘务","C01403","三年",3,3,null,"免学费","应符合国家海事局规定的船员体检标准（GB30035-2021)，双眼裸视力均能达到0.4（4.6）及以上；或双眼裸视力均能达0.1（4.0）及以上，且矫正视力均能达到0.4（4.6）及以上，无色盲色弱等。"]
[4,"福建航运学校","旅游服务与管理","C01404","三年",3,3,null,"免学费"]
[5,"福建航运学校","电子商务","C01405","三年",3,3,null,"免学费"]
["十五","福建交通职业技术学校",null,"C01500",null,10,10,null,null,"福建交通职业技术学校（简称：闽运技校）是一所省属公办的国家级、省级重点中等专业学校。校址：福州市台江区上海街道工业路418号 \n招生电话：0591-83204811    \n联系人："]
[1,"福建交通职业技术学校","汽车运用与维修","C01501","三年",10,10,null,"免学费"]
["十六","福建体育职业技术学院",null,"C01600",null,5,5,null,null,"学院地址：福州市鼓楼区福飞路151号（校本部）；福州市仓山区齐安路756号（仓山教学点）。\n联系人：彭老师，联系电话：0591-87731192；柳老师、林老师，联系电话：0591-87722512；   "]
[1,"福建体育职业技术学院","运动训练","C01601","三年",5,5,null,"免学费","体育类，需面试"]

{"sheet":"三年中专非全日制","index":3,"n_rows":22,"n_cols":9,"rows_kept":22,"merged":[[0,0,0,8],[1,0,1,8],[2,0,3,0],[2,1,3,1],[2,2,3,2],[2,3,3,3],[2,4,2,6],[2,7,3,7],[2,8,3,8],[4,1,4,2],[5,0,5,8],[17,0,17,8],[18,1,18,2]]}
["2026年面向三明市招生中等职业学校（含技工学校）招生计划"]
["（四）中等职业学校招生计划数（非全日制）"]
["序号","学校及\n专业名称","专业编码","学制","2026年招生计划数\n（人）",null,null,"收费标准\n(元/学年) ","备  注"]
[{"$nulls":4},"总数","平台招生（应届生）","自主招生（其他生源，含应往届）"]
["总计",{"$nulls":3},{"$f":"E7+E19","v":1580},null,{"$f":"G7+G19","v":1580}]
["▲市、县属中等职业学校"]
[null,"小计",null,null,{"$f":"E8+E15","v":1080},null,{"$f":"G8+G15","v":1080}]
["一","三明市农业学校","A00200",null,{"$f":"SUM(E9:E14)","v":1000},null,{"$f":"SUM(G9:G14)","v":1000},null,"学校隶属福建省农业农村厅和三明市人民政府，是一所公办的国家级重点中等职业学校，首批国家改革发展示范学校，全国教育系统先进集体，福建省文明校园，省教育系统先进集体，省职业教育先进单位。\n地址：福建省三明市沙县城关长泰路16号\n网址：http://www.fjsmnx.com/index.html\n招生咨询：0598-8853068  5822373 "]
[1,"园艺技术","A00221","三年",350,null,350,null,"非全日制"]
[2,"茶叶生产与加工","A00222","三年",150,null,150,null,"非全日制"]
[3,"中餐烹饪","A00223","三年",350,null,350,null,"非全日制"]
[4,"农产品贮藏与加工","A00224","三年",50,null,50,null,"非全日制"]
[5,"农机设备应用与维修","A00225","三年",50,null,50,null,"非全日制"]
[6,"建筑工程施工","A00226","三年",50,null,50,null,"非全日制"]
["二","清流县高级职业中学","A01100",null,{"$f":"SUM(E16:E17)","v":80},null,{"$f":"SUM(G16:G17)","v":80},null,"县属公办校，市文明学校，市德育工作先进校，市绿化先进单位，县平安校园。\n地址:清流县龙津镇常春街25号\n校长:罗维雄      招生咨询:0598-5324931"]
[1,"化学工艺","A01110","三年",60,null,60,"免学费","非全日制"]
[2,"运动训练","A01111","三年",20,null,20,"免学费","非全日制，2026年新设置专业"]
["▲省属中等职业中专学校"]
[null,"小计",null,null,{"$f":"E20","v":500},null,{"$f":"G20","v":500}]
["一","福建三明林业学校","AC00100",null,500,null,500,null,"省属公办国家级重点中专学校，直属福建省林业局，系国家中职教育改革发展示范校，福建省\"双高计划\"立项建设学校，福建省\"三全育人\"典型学校、省示范性现代职业院校，省平安校园，省职业教育先进单位、省教育系统先进集体，全国林草系统先进单位，全国绿化模范单位。                                                   \n地址：三明市三元区富文一路25号(三明一中旁)\n校长：范繁荣\n网址：http://www.fjsmlyxx.com\n招生咨询：0598-8319471"]
[1,"林业生产技术","AC00120","三年",300,null,300,"免学费","非全日制"]
[2,"园林技术","AC00121","三年",200,null,200,"免学费","非全日制"]